Workbook

Sheet TitlePage
A1: Title page
C6: Custom Workbook for Ash Tree Injections with Tree-äge (Emamectin benzoate)
A51: 2010-07-04

Sheet General Notes
A1: General Notes
B2: Prepared by: | C2: Patrick R Durkin
B3: Program Version: | C3: N/A
B4: Database Used: | C4: N/A
B5: Template Workbook: | C5: N/A
B6: Base Workbook: | C6: N/A
A8: Color Codes in WorksheetMaker Version 5
A13: Color Codes used in Workbook for Front Matter, Data and Calculation Worksheets
B14: Green shading | C14: This is a default value or a user specified a value. You can change these values as you see fit but you should have a reason for doing so.
B15: Yellow shading | C15: This is a source for a link in other parts of the workbook. If you have good reason to change the value, you should note the change (with your reason) in the “Revisions” page.
B16: Blue shading | C16: This cell is linked to another cell in the workbook. Do not change this value. If you change any of these values, the workbook may not update correctly.
B17: Blue shading blue border | C17: This cell is linked to a Program parameter in Worksheet A01. Do not change this value. If you want the value to change, go to Worksheet A01 and change the value in that worksheet.
B18: Purple Shading | C18: Indicates (for information only) that the typical of order of Lower and Upper values is intentionally reversed. This is only used in the second (label) column.
B19: Italics, no shading | C19: The value in this cell is generated by a formula (the number that you see is the result of an equation). This cell is linked only to other cells in the worksheet. Do not change this value.
A25: Color Codes used in Workbook for Risk Characterization Worksheets
B26: HQ ≥ 2 | C26: For hazard quotient greater than 2, the number is in bold font with a red background and rounded to the nearest integer.
B27: HQ > 1 but < 2 | C27: For hazard quotient greater than 1 but less than two, the number is in bold font with a white background and rounded to one significant place after the decimal.
B28: HQ ≥ 0.1 but <1 | C28: For hazard quotient greater than 0.1 but less than one, the number is in regular font with a white background and rounded to one significant place after the decimal.
B29: HQ < 0.1 | C29: For hazard quotient less than 0.1, the number is in regular font with a white background. The number is expressed in scientific notation and rounded to one significant place -- e.g., 2E-02 rather than 0.02.
B55: Prepared by: | C55: Patrick R Durkin
B56: Program Version: | C56: 5.00.64
B57: Database Used: | C57: FS WsMkr V5-01a.mdb
B58: Template Workbook: | C58: FS WsMkr V5-01a.mdb
B59: Base Workbook: | C59: FS WSMkr Blank V05-01a.xls

Sheet Chemical Notes
A1: Chemical specific notes
A2: Risk Assessment: | D2: SERA TR-052-23-02a
A3: Report Date: | D3: October, 2010
A5: WorksheetMaker does not currently support tree-injection. Based on the risk assessments associated with tree injection (i.e., imidacloprid, dinotefuran, and now emamectin benzoate), the nature of the available data and approaches taken in the risk assessments are substantailly different. Thus, the implementation of tree-injection in WorksheetMaker is not warrented at this time. Consequently, this EXCEL workbook for emamectin benzoate is a custom workbook developed by tree-injections of emamectin benzoate. While components of WorksheetMaker (Version 5.00.63) were used to develop this workbook, WorksheetMaker was not used directly. Nonetheless, the workbook is structured in such a manner as to be consistent with workbooks created by WorksheetMaker. Thus, if you are familiar with WorksheetMaker workbooks, you should be comfortable using and modifying the current workbook for any specific project. See Worksheet A01.

Sheet Revisions
A1: Revision Histroy

Sheet Contents
A1: Table of Contents
A2: Work-sheet No. | B2: Title
A3: TitlePage | B3: Title page
A4: General Notes | B4: General Notes
A5: Chemical Notes | B5: Chemical specific notes
A6: Revisions | B6: Revision Histroy
A7: Contents | B7: Table of Contents
A8: A01 | B8: Program Data for Tree Injection
A9: A02 | B9: General reference values and exposure factors used in worksheets.
A10: A03 | B10: Consumption values used in worksheets
A11: B01 | B11: Chemical and Physical Properties for Emamectin benzoate
A12: B02 | B12: Toxicity values for Emamectin benzoate
A13: B03 | B13: Summary of chemical specific dermal absorption values
A14: B05 | B14: Calculation of Zero-Order Dermal Permeability Rate (Kp) in cm/hour using MW and Kow for Emamectin benzoate.
A15: B05-Alt | B15: Calculation of Zero-Order Dermal Permeability Rate (Kp) in cm/hour using Kow for Emamectin benzoate but Upper Bound MW of 700 g/mole.
A16: B06 | B16: Calculation of First-Order Dermal Absorption Rate using MW and Kow for Emamectin benzoate.
A17: B06-Alt | B17: Calculation of First-Order Dermal Absorption Rate using Kow for Emamectin benzoate but upper bound MW of 400 g/mole.
A18: B07 | B18: Calculations for Emamectin benzoate dosing and concentrations in leaves.
A19: C01a | B19: Exposure estimates for Workers based on Standard Forest Service Methods with PPE
A20: C01a-Sup | B20: Exposure estimates for Workers based on Standard Forest Service Methods Without PPE
A21: C01b | B21: Exposure estimates based on Pesticide Handlers Exposure Database (PHED) Method With Gloves
A22: C01b-Sup | B22: Exposure estimates based on Pesticide Handlers Exposure Database (PHED) Method Without Gloves
A23: C02a | B23: Accidental Dermal Exposure Assessment Using Zero-Order Absorption, Worker, Surface Area, Hands, for 1 minute(s)
A24: C02b | B24: Accidental Dermal Exposure Assessment Using Zero-Order Absorption, Worker, Surface Area, Hands, for 60 minute(s)
A25: C03a | B25: Accidental Dermal Exposure Assessment Using First-Order Absorption, Worker, Surface Area, Hands, for 60 minute(s)
A26: C03b | B26: Accidental Dermal Exposure Assessment Using First-Order Absorption, Worker, Surface Area, Lower legs, for 60 minute(s)
A27: D05 | B27: Acute exposure of Child after an accidental spill of the pesticide into a pond
A28: D08a | B28: Acute scenario for the consumption of contaminated fish by Adult Male after an accidental spill of the pesticide into a pond
A29: D08b | B29: Acute scenario for the consumption of contaminated fish by Subsistence Populations after an accidental spill of the pesticide into a pond
A30: D11 | B30: Swimming Exposure Assessment Using Zero-Order Absorption, Adult Female, Surface Area, Whole body, for 60 minute(s) following an accidental spill
A31: E01 | B31: Worksheet E01: Summary of Worker Exposure Assessments
A32: E02 | B32: Worksheet E01: Summary of Worker Hazard Quotients (Toxicity)
A33: E03 | B33: Worksheet E03: Summary of Exposure Assessments for the General Public
A34: E04 | B34: Worksheet E03: Summary of Hazard Quotients (Toxicity) for the General Public
A35: F05a | B35: Acute exposure of Small Mammal after an accidental spill of the pesticide into a pond
A36: F05b | B36: Acute exposure of Small Bird after an accidental spill of the pesticide into a pond
A37: F05c | B37: Acute exposure of Carnivorous mammal after an accidental spill of the pesticide into a pond
A38: F05d | B38: Acute exposure of Large Mammal after an accidental spill of the pesticide into a pond
A39: F05e | B39: Acute exposure of Small Bird after an accidental spill of the pesticide into a pond
A40: F08 | B40: Acute scenario for the consumption of contaminated fish by Fish-eating bird after an accidental spill of the pesticide into a pond
A41: F14a1 | B41: Consumption of Contaminated Insects, Small Mammal, acute exposure scenario, assuming uniform distribution to leaves
A42: F14a2 | B42: Consumption of Contaminated Insects, Small Mammal, acute exposure scenario, assuming limited distribution to leaves
A43: F14b1 | B43: Consumption of Contaminated Insects, Small Bird, acute exposure scenario, assuming uniform distribution to leaves
A44: F14b2 | B44: Consumption of Contaminated Insects, Small Bird, acute exposure scenario, assuming limited distribution to leaves
A45: G01 | B45: Summary of Exposure Assessments for the Terrestrial Animals
A46: G02 | B46: Summary of Exposure Assessments for the Terrestrial Animals
A47: G03 | B47: Worksheet G03: Summary of Hazard Quotients for Aquatic Species
A48: G07a | B48: Consumption of Leaves of Treated Ash Tree, Assuming Uniform Distribution to Leaves
A49: G07b | B49: Consumption of Leaves of Treated Ash Tree, Assuming Limited Distribution to Leaves

Sheet A01
A1: Program Data for Tree Injection
A2: Parameter/Assumption | B2: Code / Range | C2: Equation/ Value | D2: Units | E2: Reference/Equation
A3: Amount per Injection | B3: InjAmnt | C3: 0.0034 | D3: lb a.i./injection site
A4: Number of Injections per Day | B4: Ninj
B5: Central | C5: 80 | D5: Unitless
B6: Lower | C6: 40
B7: Upper | C7: 160
A8: Amount a.i. handled per day: | B8: Amnt | C8: InjAmnt x Ninj
B9: Central | C9: =C$3*C5 -> 0.272 | D9: lb a.i. | E9: Eq
B10: Lower | C10: =C$3*C6 -> 0.136 | E10: Eq
B11: Upper | C11: =C$3*C7 -> 0.544 | E11: Eq
A12: Density of formulation | B12: Dens | C12: 1.08 | D12: g/mL | E12: MSDS
A13: % a.i. in formulation | B13: %a.i. | C13: 0.04 | E13: Product label
A14: Concentration of a.i. in formulation | B14: ConcA.I. | C14: =C12*1000*C13 -> 43.2 | D14: mg/mL | E14: 1000 mg/g x Dens x %a.i..
A15: Dilution factor for formulation | B15: DilF
B16: Central | C16: 0.5 | D16: 1 part water | E16: Product label
B17: Lower | C17: 0.25 | D17: 3 part water | E17: Product label
B18: Upper | C18: 1 | D18: No dilution | E18: Product label
A19: Concentration in field solution | B19: ConcF | C19: ConcA.I. x DilF
B20: Central | C20: =C$14*C16 -> 21.6 | D20: mg/mL | E20: Eq
B21: Lower | C21: =C$14*C17 -> 10.8 | E21: Eq
B22: Upper | C22: =C$14*C18 -> 43.2 | E22: Eq
A23: Range of doses per tree | B23: DoseTree
B24: Central | C24: 5000 | D24: mg | E24: Section 3.2.3.4.1. of RA
B25: Lower | C25: 600
B26: Upper | C26: 42600
A27: Volume of pond for accidental spill | B27: PondVol | C27: 20000000 | D27: Liters | E27: Section 3.2.3.4.1. of RA
A28: Estimated Residues in Contaminated Insects | B28: InsectC
B29: Central | C29: 0.004 | D29: mg/kg bw | E29: Section 4.2.2.3 of RA
B30: Lower | C30: 0.0001
B31: Upper | C31: 0.16

Sheet A02
A1: General reference values and exposure factors used in worksheets.
A2: Receptor | B2: Factor | C2: Value | D2: Units | E2: Reference | F2: Reference Note
A3: Adult Female | B3: Body weight | C3: 64 | D3: kg | E3: U.S. EPA/ORD 1985 | F3: page 5, Table 2-2
A4: Adult Female | B4: Surface Area, Feet and lower Legs | C4: 2915 | D4: cm2 | E4: U.S. EPA/ORD 1992 | F4: p. 8-11, Table 8-3, total for feet and lower legs
A5: Adult Female | B5: Surface Area, Wearing shorts and T-shirt | C5: 5300 | D5: cm2 | E5: U.S. EPA/ORD 1992 | F5: p. 8-11, Table 8-3, total for arms, hands, lower legs, and feet.
A6: Adult Female | B6: Surface Area, Whole body | C6: 16900 | D6: cm2 | E6: U.S. EPA/ORD 1997 | F6: p. 6-13, Table 6-3, whole body, 50th percentile
A7: Adult Male | B7: Body weight | C7: 70 | D7: kg | E7: ICRP 1975 | F7: p. 13.
A8: Subsistence Populations | B8: Body weight | C8: 70 | D8: kg | E8: ICRP 1975 | F8: p. 13
A9: Amphibian | B9: Kilocalories, alpha parameter for allometric equation | C9: 0.054 | D9: BW(g),Kcal (kcal/day) | E9: U.S. EPA/ORD 1993 | F9: p. 3-7, equation 3-14
A10: Amphibian | B10: Kilocalories, alpha parameter for allometric equation | C10: 0.013 | D10: BW(g),KCal(kcal/day) | E10: U.S. EPA/ORD 1993 | F10: Eq. 3-13, p. 3-7, insectivores
A11: Amphibian | B11: Kilocalories, beta parameter for allometric equation | C11: 0.799 | D11: BW(g),Kcal (kcal/day) | E11: U.S. EPA/ORD 1993 | F11: p. 3-7, equation 3-14
A12: Amphibian | B12: Kilocalories, beta parameter for allometric equation | C12: 0.773 | D12: BW(g),KCal(kcal/day) | E12: U.S. EPA/ORD 1993 | F12: Eq. 3-13, p. 3-7, insectivores
A13: AmphBullFrog | B13: Food consumption, alpha parameter for allometric equation | C13: 1.09 | D13: BW(g),FC(g) | E13: SERA 2010 | F13: Figure 15
A14: AmphBullFrog | B14: Food consumption, beta parameter for allometric equation | C14: 0.1723 | D14: BW(g),FC(g) | E14: SERA 2010 | F14: Figure 15
A15: Aerial Spray Worker | B15: Absorbed dose rate, central estimate | C15: 3e-05 | D15: (mg/kg bw)/(lbs handled per day) | E15: SERA 2007 | F15: Acres treated per hour
A16: Aerial Spray Worker | B16: Absorbed dose rate, lower range | C16: 1e-06 | D16: (mg/kg bw)/(lbs handled per day) | E16: SERA 2007 | F16: Acres treated per hour
A17: Aerial Spray Worker | B17: Absorbed dose rate, upper range | C17: 0.0001 | D17: (mg/kg bw)/(lbs handled per day) | E17: SERA 2007 | F17: Acres treated per hour
A18: Aerial Spray Worker | B18: Hours of application per day, central estimate | C18: 7 | D18: Hours per day | E18: USDA 1989a | F18: N/A
A19: Aerial Spray Worker | B19: Hours of application per day, lower range | C19: 6 | D19: Hours per day | E19: USDA 1989a | F19: N/A
A20: Aerial Spray Worker | B20: Hours of application per day, upper range | C20: 8 | D20: Hours per day | E20: USDA 1989a | F20: N/A
A21: Aerial Spray Worker | B21: Acres treated per hour, central estimate | C21: 70 | D21: acres/hour | E21: USDA 1989a | F21: Acres treated per hour
A22: Aerial Spray Worker | B22: Acres treated per hour, lower range | C22: 40 | D22: acres/hour | E22: USDA 1989a | F22: Acres treated per hour
A23: Aerial Spray Worker | B23: Acres treated per hour, upper range | C23: 100 | D23: acres/hour | E23: USDA 1989a | F23: Acres treated per hour
A24: Backpack Worker | B24: Absorbed dose rate, central estimate | C24: 0.003 | D24: (mg/kg bw)/(lbs handled per day) | E24: SERA 2007 | F24: Acres treated per hour
A25: Backpack Worker | B25: Absorbed dose rate, lower range | C25: 0.0003 | D25: (mg/kg bw)/(lbs handled per day) | E25: SERA 2007 | F25: Acres treated per hour
A26: Backpack Worker | B26: Absorbed dose rate, upper range | C26: 0.01 | D26: (mg/kg bw)/(lbs handled per day) | E26: SERA 2007 | F26: Acres treated per hour
A27: Backpack Worker | B27: Hours of application per day, central estimate | C27: 7 | D27: Hours per day | E27: USDA 1989a | F27: N/A
A28: Backpack Worker | B28: Hours of application per day, lower range | C28: 6 | D28: Hours per day | E28: USDA 1989a | F28: N/A
A29: Backpack Worker | B29: Hours of application per day, upper range | C29: 8 | D29: Hours per day | E29: USDA 1989a | F29: N/A
A30: Backpack Worker | B30: Acres treated per hour, central estimate | C30: 0.625 | D30: acres/hour | E30: USDA 1989a | F30: Acres treated per hour
A31: Backpack Worker | B31: Acres treated per hour, lower range | C31: 0.25 | D31: acres/hour | E31: USDA 1989a | F31: Acres treated per hour
A32: Backpack Worker | B32: Acres treated per hour, upper range | C32: 1 | D32: acres/hour | E32: USDA 1989a | F32: Acres treated per hour
A33: Birds | B33: Food consumption, alpha parameter for allometric equation | C33: 0.648 | D33: BW(g),FC(g) | E33: U.S. EPA/ORD 1993 | F33: Eq. 3-3, p. 3-4, all birds
A34: Birds | B34: Food consumption, beta parameter for allometric equation | C34: 0.651 | D34: BW(g),FC(g) | E34: U.S. EPA/ORD 1993 | F34: Eq. 3-3, p. 3-4, all birds
A35: Carnivorous bird | B35: Body weight | C35: 0.637 | D35: kg | E35: Dunning 1993 | F35: p. 97. Female Spotted Owl (Strix occidentalis). Range of 548 to 760 g.
A36: Carnivorous bird | B36: Kilocalories, alpha parameter for allometric equation | C36: 1.146 | D36: BW(g),KCal(kcal/day) | E36: U.S. EPA/ORD 1993 | F36: Eq. 3-37, p. 3-23, non-passerines
A37: Carnivorous bird | B37: Kilocalories, beta parameter for allometric equation | C37: 0.749 | D37: BW(g),KCal(kcal/day) | E37: U.S. EPA/ORD 1993 | F37: Eq. 3-37, p. 3-23, non-passerines
A38: Carnivorous bird | B38: Water consumption, alpha parameter for allometric equation | C38: 0.059 | D38: BW(kg), WC(L) | E38: U.S. EPA/ORD 1993 | F38: Eq. 3-15, p. 3-8
A39: Carnivorous bird | B39: Water consumption, beta parameter for allometric equation | C39: 0.67 | D39: BW(kg), WC(L) | E39: U.S. EPA/ORD 1993 | F39: Eq. 3-15, p. 3-8
A40: Large Bird | B40: Body weight | C40: 4 | D40: kg | E40: Default | F40: Canada goose
A41: Large Bird | B41: Kilocalories, alpha parameter for allometric equation | C41: 3.12 | D41: BW(g),KCal(kcal/day) | E41: U.S. EPA/ORD 1993 | F41: Eq. 3-35, p. 3-22, all birds
A42: Large Bird | B42: Kilocalories, beta parameter for allometric equation | C42: 0.604 | D42: BW(g),KCal(kcal/day) | E42: U.S. EPA/ORD 1993 | F42: Eq. 3-35, p. 3-22, all birds
A43: Large Bird | B43: Water consumption, alpha parameter for allometric equation | C43: 0.059 | D43: BW(kg), WC(L) | E43: U.S. EPA/ORD 1993 | F43: Eq. 3-15, p. 3-8
A44: Large Bird | B44: Water consumption, beta parameter for allometric equation | C44: 0.67 | D44: BW(kg), WC(L) | E44: U.S. EPA/ORD 1993 | F44: Eq. 3-15, p. 3-8
A45: Bird, non-Passerine | B45: Food consumption, alpha parameter for allometric equation | C45: 0.301 | D45: BW(g),FC(g) | E45: U.S. EPA/ORD 1993 | F45: Eq. 3-5, p. 3-5, non-passerines
A46: Bird, non-Passerine | B46: Food consumption, beta parameter for allometric equation | C46: 0.751 | D46: BW(g),FC(g) | E46: U.S. EPA/ORD 1993 | F46: Eq. 3-5, p. 3-5, non-passerines
A47: BrdPass | B47: Food consumption, alpha parameter for allometric equation | C47: 0.398 | D47: BW(g), FC(g) | E47: U.S. EPA/ORD 1993 | F47: Eq. 3-4, p. 3-4, passerines
A48: BrdPass | B48: Food consumption, beta parameter for allometric equation | C48: 0.85 | D48: BW(g),FC(g) | E48: U.S. EPA/ORD 1993 | F48: Eq. 3-4, p. 3-4, passerines
A49: Bird, Passerine | B49: Food consumption, alpha parameter for allometric equation | C49: 0.648 | D49: BW(g),FC(g) | E49: U.S. EPA/ORD 1993 | F49: Eq. 3-4, p. 3-4, passerines
A50: Bird, Passerine | B50: Food consumption, beta parameter for allometric equation | C50: 0.85 | D50: BW(g),FC(g) | E50: U.S. EPA/ORD 1993 | F50: Eq. 3-4, p. 3-4, passerines
A51: Small Bird | B51: Body weight | C51: 0.01 | D51: kg | E51: Default | F51: N/A
A52: Small Bird | B52: Kilocalories, alpha parameter for allometric equation | C52: 3.12 | D52: BW(g),KCal(kcal/day) | E52: U.S. EPA/ORD 1993 | F52: Eq. 3-35, p. 3-22, all birds
A53: Small Bird | B53: Kilocalories, beta parameter for allometric equation | C53: 0.604 | D53: BW(g),KCal(kcal/day) | E53: U.S. EPA/ORD 1993 | F53: Eq. 3-35, p. 3-22, all birds
A54: Small Bird | B54: Water consumption, alpha parameter for allometric equation | C54: 0.059 | D54: BW(kg), WC(L) | E54: U.S. EPA/ORD 1993 | F54: Eq. 3-15, p. 3-8
A55: Small Bird | B55: Water consumption, beta parameter for allometric equation | C55: 0.67 | D55: BW(kg), WC(L) | E55: U.S. EPA/ORD 1993 | F55: Eq. 3-15, p. 3-8
A56: Child | B56: Body weight | C56: 13.3 | D56: kg | E56: U.S. EPA/ORD 1996 | F56: p. 7-1, Table 7-2
A57: Child | B57: Surface Area, Whole body | C57: 6030 | D57: cm2 | E57: U.S. EPA/ORD 1996 | F57: p. 6-15, Table 6-6, 50th percentile.
A58: Conversion Factors | B58: liters per gal | C58: 3.785 | D58: L/gal | E58: N/A | F58: N/A
A59: Conversion Factors | B59: pound per milligram | C59: 453600 | D59: mg/lb | E59: N/A | F59: N/A
A60: Conversion Factors | B60: lbac2mgcm2 | C60: 0.01121 | D60: mg/cm2 per lb/acre | E60: N/A | F60: N/A
A61: Conversion Factors | B61: lbac2ugcm2 | C61: 11.21 | D61: ug/cm2 per lb/acre | E61: N/A | F61: N/A
A62: Conversion Factors | B62: conversion for milligrams to pounds | C62: 2.204e-06 | D62: lb/mg | E62: N/A | F62: N/A
A63: Conversion Factors | B63: conversion for milliliters to gallons | C63: 3785 | D63: ml/gal | E63: N/A | F63: N/A
A64: Small insects | B64: Caloric content (wet weight) | C64: 1.5 | D64: kcal/g | E64: U.S. EPA/ORD 1993 | F64: Table 4-1, p. 4-13. Value for beetles. Wet weight
A65: Vegetation | B65: Caloric content (dry weight) | C65: 2.46 | D65: kcal/g | E65: U.S. EPA/ORD 1993 | F65: p. 3-5
A66: Vegetation | B66: Water content (proportion) | C66: 0.85 | D66: unitless | E66: U.S. EPA/ORD 1993 | F66: p. 4-14
A67: Ground Spray Worker | B67: Absorbed dose rate, central estimate | C67: 0.0002 | D67: (mg/kg bw)/(lbs handled per day) | E67: SERA 2007 | F67: Acres treated per hour
A68: Ground Spray Worker | B68: Absorbed dose rate, lower range | C68: 1e-05 | D68: (mg/kg bw)/(lbs handled per day) | E68: SERA 2007 | F68: Acres treated per hour
A69: Ground Spray Worker | B69: Absorbed dose rate, upper range | C69: 0.0009 | D69: (mg/kg bw)/(lbs handled per day) | E69: SERA 2007 | F69: Acres treated per hour
A70: Ground Spray Worker | B70: Hours of application per day, central estimate | C70: 7 | D70: Hours per day | E70: USDA 1989a | F70: N/A
A71: Ground Spray Worker | B71: Hours of application per day, lower range | C71: 6 | D71: Hours per day | E71: USDA 1989a | F71: N/A
A72: Ground Spray Worker | B72: Hours of application per day, upper range | C72: 8 | D72: Hours per day | E72: USDA 1989a | F72: N/A
A73: Ground Spray Worker | B73: Acres treated per hour, central estimate | C73: 16 | D73: acres/hour | E73: USDA 1989a | F73: Acres treated per hour
A74: Ground Spray Worker | B74: Acres treated per hour, lower range | C74: 11 | D74: acres/hour | E74: USDA 1989a | F74: Acres treated per hour
A75: Ground Spray Worker | B75: Acres treated per hour, upper range | C75: 21 | D75: acres/hour | E75: USDA 1989a | F75: Acres treated per hour
A76: Honeybee | B76: Body weight | C76: 9.3e-05 | D76: kg | E76: Default | F76: N/A
A77: Honeybee | B77: Surface Area, Whole body | C77: 1.42 | D77: cm2 | E77: Humphery and Dykes 2008 | F77: Based on a bee with a body length of 1.44 cm.
A78: Mammals | B78: Food consumption, alpha parameter for allometric equation | C78: 0.235 | D78: BW(g),FC(g) | E78: U.S. EPA/ORD 1993 | F78: Eq. 3-7 ,p. 3-6, all mammals
A79: Mammals | B79: Food consumption, beta parameter for allometric equation | C79: 0.822 | D79: BW(g),FC(g) | E79: U.S. EPA/ORD 1993 | F79: Eq. 3-7 ,p. 3-6, all mammals
A80: Carnivorous mammal | B80: Body weight | C80: 5 | D80: kg | E80: U.S. EPA/ORD 1993 | F80: p. 2-221. Central value for red fox with a range of 3 to 7 kg.
A81: Carnivorous mammal | B81: Kilocalories, alpha parameter for allometric equation | C81: 1.894 | D81: BW(g),KCal(kcal/day) | E81: U.S. EPA/ORD 1993 | F81: p. 3-6, equation 3-11, carnivores
A82: Carnivorous mammal | B82: Kilocalories, beta parameter for allometric equation | C82: 0.7 | D82: BW(g),KCal(kcal/day) | E82: U.S. EPA/ORD 1993 | F82: p. 3-6, equation 3-11, carnivores
A83: Carnivorous mammal | B83: Water consumption, alpha parameter for allometric equation | C83: 0.099 | D83: BW(kg),WC(L) | E83: U.S. EPA/ORD 1993 | F83: Eq. 3-17, p. 3-10, all mammals
A84: Carnivorous mammal | B84: Water consumption, beta parameter for allometric equation | C84: 0.9 | D84: BW(kg), WC(L) | E84: U.S. EPA/ORD 1993 | F84: Eq. 3-17, p. 3-10, all mammals
A85: Herbivorous/Omnivorous mammal | B85: Food consumption, alpha parameter for allometric equation | C85: 0.577 | D85: BW(g),FC(g) | E85: U.S. EPA/ORD 1993 | F85: Eq. 3-9, p. 3-6, equation for herbivores
A86: Herbivorous/Omnivorous mammal | B86: Food consumption, beta parameter for allometric equation | C86: 0.727 | D86: BW(g),FC(g) | E86: U.S. EPA/ORD 1993 | F86: Eq. 3-9, p. 3-6, equation for herbivores
A87: Herbivorous/Omnivorous mammal | B87: Kilocalories, alpha parameter for allometric equation | C87: 1.518 | D87: BW(g),KCal(kcal/day) | E87: U.S. EPA/ORD 1993 | F87: p. 3-6, equation 3-10, herbivores
A88: Herbivorous/Omnivorous mammal | B88: Kilocalories, beta parameter for allometric equation | C88: 0.73 | D88: BW(g),KCal(kcal/day) | E88: U.S. EPA/ORD 1993 | F88: p. 3-6, equation 3-10, herbivores
A89: Large Mammal | B89: Body weight | C89: 70 | D89: kg | E89: Default | F89: N/A
A90: Large Mammal | B90: Kilocalories, alpha parameter for allometric equation | C90: 1.518 | D90: BW(g),KCal(kcal/day) | E90: U.S. EPA/ORD 1993 | F90: p. 3-6, Eq. 3-10, herbivores
A91: Large Mammal | B91: Kilocalories, beta parameter for allometric equation | C91: 0.73 | D91: BW(g),KCal(kcal/day) | E91: U.S. EPA/ORD 1993 | F91: p. 3-6, Eq. 3-10, herbivores
A92: Large Mammal | B92: Water consumption, alpha parameter for allometric equation | C92: 0.099 | D92: BW(kg),WC(L) | E92: U.S. EPA/ORD 1993 | F92: Eq. 3-17, p. 3-10, all mammals
A93: Large Mammal | B93: Water consumption, beta parameter for allometric equation | C93: 0.9 | D93: BW(kg), WC(L) | E93: U.S. EPA/ORD 1993 | F93: Eq. 3-17, p. 3-10, all mammals
A94: Rabbit | B94: Body weight | C94: 1.3 | D94: kg | E94: Default | F94: N/A
A95: Rabbit | B95: Surface Area, alpha parameter for allometric equation | C95: 0.11 | D95: BW(g), KCal(kcal/day) | E95: U.S. EPA/ORD 1993 | F95: N/A
A96: Rabbit | B96: Surface Area, beta parameter for allometric equation | C96: 0.65 | D96: BW(g), KCal(kcal/day) | E96: U.S. EPA/ORD 1993 | F96: N/A
A97: Rodent | B97: Food consumption, alpha parameter for allometric equation | C97: 0.621 | D97: BW(g),FC(g) | E97: U.S. EPA/ORD 1993 | F97: Eq. 3-8, p. 3-6, equation for rodents
A98: Rodent | B98: Food consumption, beta parameter for allometric equation | C98: 0.564 | D98: BW(g),FC(g) | E98: U.S. EPA/ORD 1993 | F98: Eq. 3-8,p. 3-6, equation for rodents
A99: Small Mammal | B99: Body weight | C99: 0.02 | D99: kg | E99: Default | F99: N/A
A100: Small Mammal | B100: Caloric content (wet weight) | C100: 1.7 | D100: kcal/g | E100: U.S. EPA/ORD 1993 | F100: Table 4-1, p. 4-13
A101: Small Mammal | B101: Food consumption, alpha parameter for allometric equation | C101: 0.621 | D101: BW(g),FC(g) | E101: U.S. EPA/ORD 1993 | F101: Eq. 3-8, p. 3-6, equation for rodents
A102: Small Mammal | B102: Food consumption, beta parameter for allometric equation | C102: 0.584 | D102: BW(g),FC(g) | E102: U.S. EPA/ORD 1993 | F102: Eq. 3-8, p. 3-6, equation for rodents
A103: Small Mammal | B103: Kilocalories, alpha parameter for allometric equation | C103: 1.894 | D103: BW(g),KCal(kcal/day) | E103: U.S. EPA/ORD 1993 | F103: p. 3-6, equation 3-11, carnivores
A104: Small Mammal | B104: Kilocalories, beta parameter for allometric equation | C104: 0.7 | D104: BW(g),KCal(kcal/day) | E104: U.S. EPA/ORD 1993 | F104: p. 3-6, equation 3-11, carnivores
A105: Small Mammal | B105: Surface Area, alpha parameter for allometric equation | C105: 0.11 | D105: BW(kg),SA(m2) | E105: U.S. EPA/ORD 1993 | F105: eq. 3-22, p. 3-14
A106: Small Mammal | B106: Surface Area, beta parameter for allometric equation | C106: 0.65 | D106: BW(kg),SA(m2) | E106: U.S. EPA/ORD 1993 | F106: eq. 3-22, p. 3-14
A107: Small Mammal | B107: Water consumption, alpha parameter for allometric equation | C107: 0.099 | D107: BW(kg),WC(L) | E107: U.S. EPA/ORD 1993 | F107: Eq. 3-17, p. 3-10, all mammals
A108: Small Mammal | B108: Water consumption, beta parameter for allometric equation | C108: 0.9 | D108: BW(kg),WC(L) | E108: U.S. EPA/ORD 1993 | F108: Eq. 3-17, p. 3-10, all mammals
A109: Misc | B109: Liquid adhering to skin | C109: 0.008 | D109: mL/cm2 | E109: Mason and Johnson 1987 | F109: Weight of liquid adhering to surface of skin after a spill
A110: Misc | B110: Dislodgeable residue as proportion | C110: 0.1 | D110: none | E110: Harris and Solomon 1992 | F110: Estimate of dislodgeable residue as a proportion of application rate shortly after application based on 2,4-D.
A111: Standard Pond | B111: Depth | C111: 1 | D111: m | E111: Default | F111: Depth of pond
A112: Standard Pond | B112: Surface Area | C112: 1000 | D112: m^2 | E112: Default | F112: Surface Area
A113: Standard Pond | B113: Volume of Spill | C113: 200 | D113: gallons | E113: Default | F113: Volume of spill
A114: VegRR | B114: Broadleaf/forage plants and small insects, central estimate | C114: 45 | D114: mg chem/kg veg | E114: Fletcher et al. 1994 | F114: Broadleaf/forage plants and small insects
A115: VegRR | B115: Broadleaf/forage plants and small insects, lower range | C115: 15 | D115: mg chem/kg veg | E115: SERA 2007 | F115: Broadleaf/forage plants and small insects
A116: VegRR | B116: Broadleaf/forage plants and small insects, upper range | C116: 135 | D116: mg chem/kg veg | E116: Fletcher et al. 1994 | F116: Broadleaf/forage plants and small insects
A117: VegRR | B117: Fruits, pods, seeds, and large insects, central estimate | C117: 7 | D117: mg chem/kg veg | E117: Fletcher et al. 1994 | F117: Fruits, pods, seeds, and large insects
A118: VegRR | B118: Fruits, pods, seeds, and large insects, lower range | C118: 3.2 | D118: mg chem/kg veg | E118: SERA 2007 | F118: Fruits, pods, seeds, and large insects
A119: VegRR | B119: Fruits, pods, seeds, and large insects, upper range | C119: 15 | D119: mg chem/kg veg | E119: Fletcher et al. 1994 | F119: Fruits, pods, seeds, and large insects
A120: VegRR | B120: GranBLT, central estimate | C120: 1.8 | D120: mg chem/kg veg | E120: SERA 2005 | F120: Broadleaf forage plants and contaminated insects after granular application
A121: VegRR | B121: GranBLT, lower range | C121: 0.6 | D121: mg chem/kg veg | E121: SERA 2007 | F121: Broadleaf/forage plants after granular application
A122: VegRR | B122: GranBLT, upper range | C122: 5.4 | D122: mg chem/kg veg | E122: SERA 2005 | F122: Broadleaf forage plants and contaminated insects after granular application
A123: VegRR | B123: GranFRT, central estimate | C123: 0.28 | D123: mg chem/kg veg | E123: SERA 2005 | F123: Fruit after granular application
A124: VegRR | B124: GranFRT, lower range | C124: 0.13 | D124: mg chem/kg veg | E124: SERA 2007 | F124: Fruit after granular application
A125: VegRR | B125: GranFRT, upper range | C125: 0.6 | D125: mg chem/kg veg | E125: SERA 2005 | F125: Fruit after granular application
A126: VegRR | B126: GranSGT, central estimate | C126: 3.4 | D126: mg chem/kg veg | E126: SERA 2005 | F126: Short grass after granular application
A127: VegRR | B127: GranSGT, lower range | C127: 1.2 | D127: mg chem/kg veg | E127: SERA 2005 | F127: Short grass after granular application
A128: VegRR | B128: GranSGT, upper range | C128: 9.6 | D128: mg chem/kg veg | E128: SERA 2005 | F128: Short grass after granular application
A129: VegRR | B129: GranTGT, central estimate | C129: 1.44 | D129: mg chem/kg veg | E129: SERA 2005 | F129: Tall grass after granular application
A130: VegRR | B130: GranTGT, lower range | C130: 0.48 | D130: mg chem/kg veg | E130: SERA 2007 | F130: Tall grass after granular application
A131: VegRR | B131: GranTGT, upper range | C131: 4.4 | D131: mg chem/kg veg | E131: SERA 2005 | F131: Tall grass after granular application
A132: VegRR | B132: Short grass, central estimate | C132: 85 | D132: mg chem/kg veg | E132: Fletcher et al. 1994 | F132: Short grass
A133: VegRR | B133: Short grass, lower range | C133: 30 | D133: mg chem/kg veg | E133: Fletcher et al. 1994 | F133: Short grass
A134: VegRR | B134: Short grass, upper range | C134: 240 | D134: mg chem/kg veg | E134: Fletcher et al. 1994 | F134: Short grass
A135: VegRR | B135: Tall grass, central estimate | C135: 36 | D135: mg chem/kg veg | E135: Fletcher et al. 1994 | F135: Tall grass
A136: VegRR | B136: Tall grass, lower range | C136: 12 | D136: mg chem/kg veg | E136: SERA 2007 | F136: Tall grass
A137: VegRR | B137: Tall grass, upper range | C137: 110 | D137: mg chem/kg veg | E137: Fletcher et al. 1994 | F137: Tall grass
A138: VerRR | B138: GranSGT, lower range | C138: 1.2 | D138: mg chem/kg veg | E138: SERA 2007 | F138: Short grass after granular application
A139: VerRR | B139: Short grass, lower range | C139: 30 | D139: mg chem/kg veg | E139: SERA 2007 | F139: Short grass
A140: Worker | B140: Body weight | C140: 70 | D140: kg | E140: ICRP 1975 | F140: p. 13
A141: Worker | B141: Surface Area, Hands | C141: 840 | D141: cm2 | E141: U.S. EPA/ORD 1992 | F141: p. 8-11
A142: Worker | B142: Surface Area, Lower legs | C142: 2070 | D142: cm2 | E142: U.S. EPA/ORD 1992 | F142: p. 8-11

Sheet A03
A1: Consumption values used in worksheets
A2: Receptor | B2: Item | C2: Qualifier | D2: Modifier | E2: Value | F2: Units | G2: Reference | H2: Reference Note
A3: Adult Female | B3: Fish | C3: Amount | D3: central estimate | E3: 0.01 | F3: kg/day | G3: U.S. EPA/ORD 1996 | H3: p. 10-51, average of means from four studies rounded to one significant place.
A4: Adult Female | B4: Fish | C4: Amount | D4: upper range | E4: 0.158 | F4: kg/day | G4: Ruffle et al. 1994 | H4: N/A
A5: Adult Female | B5: Fruit | C5: Proportion of body weight | D5: central estimate | E5: 0.00168 | F5: kg fruit/kg bw/day | G5: U.S. EPA/ORD 1996 | H5: Table 9-3, p. 9-11, mean value.
A6: Adult Female | B6: Fruit | C6: Proportion of body weight | D6: lower range | E6: 0.00168 | F6: kg fruit/kg bw/day | G6: U.S. EPA/ORD 1996 | H6: Table 9-3, p. 9-11. The 5th percentile is given as zero. For these worksheets, the central estimate is used for the lower bound.
A7: Adult Female | B7: Fruit | C7: Proportion of body weight | D7: upper range | E7: 0.01244 | F7: kg fruit/kg bw/day | G7: U.S. EPA/ORD 1996 | H7: Table 9-3, p. 9-11, 95th percentile value.
A8: Adult Female | B8: Vegetation, home grown | C8: Proportion of body weight | D8: central estimate | E8: 0.00076 | F8: kg veg/kg bw/day | G8: U.S. EPA/ORD 1996 | H8: Table 12-15, p. 9-14, mean for individuals between 20 and 39 years old.
A9: Adult Female | B9: Vegetation, home grown | C9: Proportion of body weight | D9: lower range | E9: 8e-05 | F9: kg veg/kg bw/day | G9: U.S. EPA/ORD 1996 | H9: Table 12-15, p. 9-14, 5th percentile for individuals between 20 and 39 years old.
A10: Adult Female | B10: Vegetation, home grown | C10: Proportion of body weight | D10: upper range | E10: 0.00492 | F10: kg veg/kg bw/day | G10: U.S. EPA/ORD 1996 | H10: Table 12-15, p. 9-14, 95th percentile for individuals between 20 and 39 years old.
A11: Adult Female | B11: Vegetation | C11: Amount | D11: Extreme | E11: 0.454 | F11: kg food | G11: U.S. EPA/ORD 1996 | H11: 1 lb. The approximate mid range of the above typical and upper limits based on the 64 kg body weight.
A12: Adult Female | B12: Vegetation | C12: Proportion of body weight | D12: central estimate | E12: 0.0036 | F12: kg veg/kg bw/day | G12: U.S. EPA/ORD 1996 | H12: Table 9-12, p. 9-12, mean.
A13: Adult Female | B13: Vegetation | C13: Proportion of body weight | D13: lower range | E13: 0.00075 | F13: kg veg/kg bw/day | G13: U.S. EPA/ORD 1996 | H13: Table 9-12, p. 9-12, 5th percentile.
A14: Adult Female | B14: Vegetation | C14: Proportion of body weight | D14: upper range | E14: 0.01 | F14: kg veg/kg bw/day | G14: U.S. EPA/ORD 1996 | H14: Table 9-12, p. 9-12, 95th percentile.
A15: Adult Female | B15: Water | C15: Amount | D15: central estimate | E15: 2 | F15: L/day | G15: U.S. EPA/ORD 1996 | H15: p. 3-28, Table 3-30, midpoint of mean (1.4 L/day) and 90th percentile (2.4 L/day) rounded to one significant place.
A16: Adult Female | B16: Water | C16: Amount | D16: lower range | E16: 1.4 | F16: L/day | G16: U.S. EPA/ORD 1996 | H16: p. 3-28, Table 3-30, mean
A17: Adult Female | B17: Water | C17: Amount | D17: upper range | E17: 2.4 | F17: L/day | G17: U.S. EPA/ORD 1996 | H17: p. 3-28, Table 3-30, 90th percentile
A18: Adult Male | B18: Fish | C18: Amount | D18: central estimate | E18: 0.01 | F18: kg/day | G18: U.S. EPA/ORD 1996 | H18: p. 10-51, average of means from four studies rounded to one significant place.
A19: Adult Male | B19: Fish | C19: Amount | D19: upper range | E19: 0.158 | F19: kg/day | G19: Ruffle et al. 1994 | H19: N/A
A20: Adult Male | B20: Fruit | C20: Proportion of body weight | D20: central estimate | E20: 0.00168 | F20: unitless | G20: U.S. EPA/ORD 1996 | H20: Table 9-3, p. 9-11, mean value.
A21: Adult Male | B21: Fruit | C21: Proportion of body weight | D21: lower range | E21: 0.00168 | F21: unitless | G21: U.S. EPA/ORD 1996 | H21: Table 9-3, p. 9-11. The 5th percentile is given as zero. For these worksheets, the central estimate is used for the lower bound.
A22: Adult Male | B22: Fruit | C22: Proportion of body weight | D22: upper range | E22: 0.01244 | F22: unitless | G22: U.S. EPA/ORD 1996 | H22: Table 9-3, p. 9-11, 95th percentile value.
A23: Adult Male | B23: Vegetation, home grown | C23: Proportion of body weight | D23: central estimate | E23: 0.00076 | F23: unitless | G23: U.S. EPA/ORD 1996 | H23: Table 12-15, p. 9-14, mean for individuals between 20 and 39 years old.
A24: Adult Male | B24: Vegetation, home grown | C24: Proportion of body weight | D24: lower range | E24: 8e-05 | F24: unitless | G24: U.S. EPA/ORD 1996 | H24: Table 12-15, p. 9-14, 5th percentile for individuals between 20 and 39 years old.
A25: Adult Male | B25: Vegetation, home grown | C25: Proportion of body weight | D25: upper range | E25: 0.00492 | F25: unitless | G25: U.S. EPA/ORD 1996 | H25: Table 12-15, p. 9-14, 95th percentile for individuals between 20 and 39 years old.
A26: Adult Male | B26: Vegetation | C26: Amount | D26: Extreme | E26: 0.454 | F26: kg/day | G26: U.S. EPA/ORD 1996 | H26: 1 lb. The approximate mid range of the above typical and upper limits based on the 64 kg body weight.
A27: Adult Male | B27: Vegetation | C27: Proportion of body weight | D27: central estimate | E27: 0.0036 | F27: unitless | G27: U.S. EPA/ORD 1996 | H27: Table 9-12, p. 9-12, mean.
A28: Adult Male | B28: Vegetation | C28: Proportion of body weight | D28: lower range | E28: 0.00075 | F28: unitless | G28: U.S. EPA/ORD 1996 | H28: Table 9-12, p. 9-12, 5th percentile.
A29: Adult Male | B29: Vegetation | C29: Proportion of body weight | D29: upper range | E29: 0.01 | F29: unitless | G29: U.S. EPA/ORD 1996 | H29: Table 9-12, p. 9-12, 95th percentile.
A30: Adult Male | B30: Water | C30: Amount | D30: central estimate | E30: 2 | F30: L/day | G30: U.S. EPA/ORD 1996 | H30: p. 3-28, Table 3-30, midpoint of mean (1.4 L/day) and 90th percentile (2.4 L/day) rounded to one significant place.
A31: Adult Male | B31: Water | C31: Amount | D31: lower range | E31: 1.4 | F31: L/day | G31: U.S. EPA/ORD 1996 | H31: p. 3-28, Table 3-30, mean
A32: Adult Male | B32: Water | C32: Amount | D32: upper range | E32: 2.4 | F32: L/day | G32: U.S. EPA/ORD 1996 | H32: p. 3-28, Table 3-30, 90th percentile
A33: Subsistence Populations | B33: Fish | C33: Amount | D33: central estimate | E33: 0.081 | F33: kg/day | G33: U.S. EPA/ORD 1996 | H33: p. 10-51, median value of 94 individuals
A34: Subsistence Populations | B34: Fish | C34: Amount | D34: upper range | E34: 0.77 | F34: kg/day | G34: U.S. EPA/ORD 1996 | H34: p. 10-51, highest value of 94 individuals
A35: Fish-eating bird | B35: Fish | C35: Proportion of body weight | D35: central estimate | E35: 0.1 | F35: unitless | G35: U.S. EPA/ORD 1993 | H35: various species.
A36: Fish-eating bird | B36: Fish | C36: Proportion of body weight | D36: lower range | E36: 0.05 | F36: unitless | G36: U.S. EPA/ORD 1993 | H36: various species.
A37: Fish-eating bird | B37: Fish | C37: Proportion of body weight | D37: upper range | E37: 0.15 | F37: unitless | G37: U.S. EPA/ORD 1993 | H37: various species.
A38: Child | B38: Water | C38: Amount | D38: central estimate | E38: 1 | F38: L/day | G38: U.S. EPA/ORD 1996 | H38: p. 3-28, Table 3-30, midpoint of mean (0.61L/day) and 90th percentile (1.5 L/day) rounded to one significant place.
A39: Child | B39: Water | C39: Amount | D39: lower range | E39: 0.61 | F39: L/day | G39: U.S. EPA/ORD 1996 | H39: p. 3-28, Table 3-30, mean
A40: Child | B40: Water | C40: Amount | D40: upper range | E40: 1.5 | F40: L/day | G40: U.S. EPA/ORD 1996 | H40: p. 3-28, Table 3-30, 90th percentile
A41: Herbivorous Insect | B41: Broadleaf/Small Insects | C41: Proportion of body weight | D41: central estimate | E41: 1.3 | F41: kg food/kg bw/day | G41: Waldbauer 1968 | H41: N/A
A42: Herbivorous Insect | B42: Broadleaf/Small Insects | C42: Proportion of body weight | D42: lower range | E42: 0.6 | F42: kg food/kg bw/day | G42: Reichle et al. 1973 | H42: N/A
A43: Herbivorous Insect | B43: Broadleaf/Small Insects | C43: Proportion of body weight | D43: upper range | E43: 2.2 | F43: kg food/kg bw/day | G43: Waldbauer 1968 | H43: N/A
A44: Herbivorous Insect | B44: Fruit/Large Insects | C44: Proportion of body weight | D44: central estimate | E44: 1.3 | F44: kg food/kg bw/day | G44: Waldbauer 1968 | H44: N/A
A45: Herbivorous Insect | B45: Fruit/Large Insects | C45: Proportion of body weight | D45: lower range | E45: 0.6 | F45: kg food/kg bw/day | G45: Reichle et al. 1973 | H45: N/A
A46: Herbivorous Insect | B46: Fruit/Large Insects | C46: Proportion of body weight | D46: upper range | E46: 2.2 | F46: kg food/kg bw/day | G46: Waldbauer 1968 | H46: N/A
A47: Herbivorous Insect | B47: Short grass | C47: Proportion of body weight | D47: central estimate | E47: 1.3 | F47: kg food/kg bw/day | G47: Waldbauer 1968 | H47: N/A
A48: Herbivorous Insect | B48: Short grass | C48: Proportion of body weight | D48: lower range | E48: 0.6 | F48: kg food/kg bw/day | G48: Reichle et al. 1973 | H48: N/A
A49: Herbivorous Insect | B49: Short grass | C49: Proportion of body weight | D49: upper range | E49: 2.2 | F49: kg food/kg bw/day | G49: Waldbauer 1968 | H49: N/A
A50: Herbivorous Insect | B50: Tall Grass | C50: Proportion of body weight | D50: central estimate | E50: 1.3 | F50: kg food/kg bw/day | G50: Waldbauer 1968 | H50: N/A
A51: Herbivorous Insect | B51: Tall Grass | C51: Proportion of body weight | D51: lower range | E51: 0.6 | F51: kg food/kg bw/day | G51: Reichle et al. 1973 | H51: N/A
A52: Herbivorous Insect | B52: Tall Grass | C52: Proportion of body weight | D52: upper range | E52: 2.2 | F52: kg food/kg bw/day | G52: Waldbauer 1968 | H52: N/A

Sheet B01
A1: Chemical and Physical Properties for Emamectin benzoate
A2: Property | B2: Receptor | C2: Value | D2: Units | E2: Document Reference
A3: Bioconcentration Factor (BCF), edible, acute | B3: N/A | C3: 30 | D3: L/kg fish | E3: Table 2
A4: Bioconcentration Factor (BCF), edible, chronic | B4: N/A | C4: 30 | D4: L/kg fish | E4: Table 2
A5: Bioconcentration Factor (BCF), whole fish, acute | B5: N/A | C5: 80 | D5: L/kg fish | E5: Table 2
A6: Bioconcentration Factor (BCF), whole fish, chronic | B6: N/A | C6: 80 | D6: L/kg fish | E6: Table 2
A7: Kow (Octanol-water partition coefficient) | B7: N/A | C7: 100000 | D7: unitless | E7: Table 2
A8: Molecular weight | B8: N/A | C8: 886.1 | D8: grams/mole | E8: Table 2
A9: Water Solubility | B9: N/A | C9: 0.024 | D9: mg/L | E9: Table 2
A10: First order dermal absorption rate (ka), central estimate | B10: N/A | C10: 0.00075 | D10: per hour | E10: Section 3.2.2.2.1
A11: First order dermal absorption rate (ka), lower range | B11: N/A | C11: 0.00075 | D11: per hour | E11: Section 3.2.2.2.1
A12: First order dermal absorption rate (ka), upper range | B12: N/A | C12: 0.00075 | D12: per hour | E12: Section 3.2.2.2.1
A13: Dermal permeability (Kp), central estimate | B13: N/A | C13: 0.00032 | D13: cm/hour | E13: Section 3.2.2.2.2
A14: Dermal permeability (Kp), lower range | B14: N/A | C14: 9.2e-05 | D14: cm/hour | E14: Section 3.2.2.2.2
A15: Dermal permeability (Kp), upper range | B15: N/A | C15: 0.001 | D15: cm/hour | E15: Section 3.2.2.2.2
A16: Halftime, central estimate | B16: Fruit | C16: 0.6 | D16: days | E16: Section 3.2.3.6
A17: Halftime, lower range | B17: Fruit | C17: 0.6 | D17: days | E17: Section 3.2.3.6
A18: Halftime, upper range | B18: Fruit | C18: 0.6 | D18: days | E18: Section 3.2.3.6
A19: Halftime, central estimate | B19: Vegetation | C19: 0.6 | D19: days | E19: Section 3.2.3.6
A20: Halftime, lower range | B20: Vegetation | C20: 0.6 | D20: days | E20: Section 3.2.3.6
A21: Halftime, upper range | B21: Vegetation | C21: 0.6 | D21: days | E21: Section 3.2.3.6

Sheet B02
A1: Toxicity values for Emamectin benzoate
A2: Receptor | B2: Receptor | C2: Qualifier | D2: Endpoint | E2: Value | F2: Units | G2: Document Reference
A3: Human | B3: acute | C3: N/A | D3: Reference Dose (RfD) | E3: 0.00025 | F3: mg/kg bw | G3: Section 3.3.2.
A4: Human | B4: chronic | C4: N/A | D4: Reference Dose (RfD) | E4: 7.5e-05 | F4: mg/kg bw/day | G4: Section 3.3.3.
A5: Mammals | B5: acute | C5: N/A | D5: NOAEL | E5: 0.075 | F5: mg/kg bw | G5: Table 11
A6: Mammals | B6: chronic | C6: N/A | D6: NOAEL | E6: 0.075 | F6: mg/kg bw/day | G6: Table 11
A7: Birds | B7: acute | C7: N/A | D7: NOAEL | E7: 4.6 | F7: mg/kg bw | G7: Table 11
A8: Birds | B8: chronic | C8: N/A | D8: NOAEL | E8: 2.8 | F8: mg/kg bw/day | G8: Table 11
A9: Herbivorous Insect | B9: acute | C9: Oral, Sensitve | D9: NOEC | E9: 1e-05 | F9: mg/kg bw | G9: Table 11
A10: Herbivorous Insect | B10: acute | C10: Oral, Tolerant | D10: NOEC | E10: 0.008 | F10: mg/kg bw | G10: Table 11
A11: Fish | B11: acute | C11: sensitive species | D11: NOAEC* | E11: 0.0087 | F11: mg/L | G11: Table 11
A12: Fish | B12: acute | C12: tolerant species | D12: NOAEC* | E12: 0.072 | F12: mg/L | G12: Table 11
A13: Fish | B13: chronic | C13: sensitive species | D13: NOAEC* | E13: 0.0065 | F13: mg/L | G13: Table 11
A14: Fish | B14: chronic | C14: tolerant species | D14: NOAEC* | E14: 0.053 | F14: mg/L | G14: Table 11
A15: Aquatic invertebrate | B15: acute | C15: sensitive species | D15: NOAEC* | E15: 2e-06 | F15: mg/L | G15: Table 11
A16: Aquatic invertebrate | B16: chronic | C16: sensitive species | D16: NOAEC* | E16: 2e-06 | F16: mg/L | G16: Table 11
A17: Aquatic invertebrate | B17: acute | C17: tolerant species | D17: NOAEC* | E17: 0.025 | F17: mg/L | G17: Table 11
A18: Aquatic invertebrate | B18: chronic | C18: tolerant species | D18: NOAEC* | E18: 0.025 | F18: mg/L | G18: Table 11
A19: Aquatic algae | B19: acute | C19: general | D19: NOAEC* | E19: 0.0039 | F19: mg/L | G19: Table 11
A20: Aquatic macrophyte | B20: acute | C20: general | D20: NOAEC* | E20: 0.094 | F20: mg/L | G20: Table 11

Sheet B03
A1: Summary of chemical specific dermal absorption values
A2: Parameter/Assumption | B2: Code / Range | C2: Equation/ Value | D2: Units | E2: DermSum
A3: Zero-Order absorption rate | B3: Kp
B4: Central | C4: ='B01'!$C$13 -> 0.00032 | D4: cm/hour | E4: Section 3.2.2.2
B5: Lower | C5: ='B01'!$C$14 -> 9.2e-05 | E5: Section 3.2.2.2
B6: Upper | C6: ='B01'!$C$15 -> 0.001 | E6: Section 3.2.2.2
A7: First-Order absorption rate | B7: ka
B8: Central | C8: ='B01'!C10 -> 0.00075 | D8: hour-1 | E8: Section 3.2.2.2
B9: Lower | C9: ='B01'!C11 -> 0.00075 | E9: Section 3.2.2.2
B10: Upper | C10: ='B01'!C12 -> 0.00075 | E10: Section 3.2.2.2

Sheet B05
A1: Calculation of Zero-Order Dermal Permeability Rate (Kp) in cm/hour using MW and Kow for Emamectin benzoate.
A2: Short Title | B2: Calculation of Kp
A3: Parameter/Assumption | B3: Code / Range | C3: Equation/ Value | D3: Units | E3: Reference/Designation
A4: Molecular weight | B4: MW | C4: ='B06'!C4 -> 886.1 | D4: g/mole | E4: Section 3.1.3.2.2
A5: Ko/w | B5: Kow | C5: ='B06'!C5 -> 100000 | D5: unitless | E5: Section 3.1.3.2.2
A6: Vector a[] | B6: a[1] | C6: 1
B7: a[2] | C7: =C4 -> 886.1
B8: a[3] | C8: =LOG10(C5) -> 5
A9: Transpose of a[] (a') | B9: =$C$6 -> 1 | C9: =$C$7 -> 886.1 | D9: =$C$8 -> 5
A10: X'X Cross Product Matrix | B10: X'X
B11: 0.055931 | C11: -9.41546e-05 | D11: -0.0103443
B12: -9.41546e-05 | C12: 5.978e-07 | D12: -2.22508e-05
B13: -0.0103443 | C13: -2.22508e-05 | D13: 0.00740677
A14: a'X'X a | B14: a'X'X a | C14: =MMULT(B9:D9,MMULT(B11:D13, C6:C8)) -> 0.243008674
A15: Coefficients for model
A16: Intercept | B16: K0 | C16: -2.72576
A17: Coeff for Log10(Kow) | B17: K1 | C17: 0.706648
A18: Coeff for MW | B18: K2 | C18: -0.006151
A19: Standard deviation of model | B19: s | C19: 0.727129
A20: Critical value at 0.025 with 87 d.f. | B20: t0.025 | C20: 1.96
A21: Log10 of Estimated dermal permeability rate (Kp) | B21: Log(Kp) = | C21: K1 MW × K2 Log10(Kow) + K0
B22: Central | C22: =($C$18*$C$4) + ($C$17*LOG10($C$5)) + $C$16 -> -4.6429211 | E22: Eq
B23: Lower 95% CI | C23: =$C$22 - ($C$20 * $C$19 * ($C$14^0.5)) -> -5.34547302 | E23: Eq
B24: Upper 95% CI | C24: =$C$22 + ($C$20 * $C$19 * ($C$14^0.5)) -> -3.94036918 | E24: Eq
A25: Estimated dermal permeability rate (Kp) | B25: Kp = | C25: 10Log(Kp)
B26: Central | C26: =10^C22 -> 2.275510794e-05 | D26: cm/hour | E26: Eq
B27: Lower 95% CI | C27: =10^C23 -> 4.513640647e-06 | E27: Eq
B28: Upper 95% CI | C28: =10^C24 -> 0.0001147178028 | E28: Eq

Sheet B05-Alt
A1: Calculation of Zero-Order Dermal Permeability Rate (Kp) in cm/hour using Kow for Emamectin benzoate but Upper Bound MW of 700 g/mole.
A2: Short Title | B2: Calculation of Kp
A3: Parameter/Assumption | B3: Code / Range | C3: Equation/ Value | D3: Units | E3: Reference/Designation
A4: Molecular weight | B4: MW | C4: 700 | D4: g/mole | E4: Section 3.1.3.2.2
A5: Ko/w | B5: Kow | C5: ='B06'!C5 -> 100000 | D5: unitless | E5: Section 3.1.3.2.2
A6: Vector a[] | B6: a[1] | C6: 1
B7: a[2] | C7: =C4 -> 700
B8: a[3] | C8: =LOG10(C5) -> 5
A9: Transpose of a[] (a') | B9: =$C$6 -> 1 | C9: =$C$7 -> 700 | D9: =$C$8 -> 5
A10: X'X Cross Product Matrix | B10: X'X
B11: 0.055931 | C11: -9.41546e-05 | D11: -0.0103443
B12: -9.41546e-05 | C12: 5.978e-07 | D12: -2.22508e-05
B13: -0.0103443 | C13: -2.22508e-05 | D13: 0.00740677
A14: a'X'X a | B14: a'X'X a | C14: =MMULT(B9:D9,MMULT(B11:D13, C6:C8)) -> 0.14300721
A15: Coefficients for model
A16: Intercept | B16: K0 | C16: -2.72576
A17: Coeff for Log10(Kow) | B17: K1 | C17: 0.706648
A18: Coeff for MW | B18: K2 | C18: -0.006151
A19: Standard deviation of model | B19: s | C19: 0.727129
A20: Critical value at 0.025 with 87 d.f. | B20: t0.025 | C20: 1.96
A21: Log10 of Estimated dermal permeability rate (Kp) | B21: Log(Kp) = | C21: K1 MW × K2 Log10(Kow) + K0
B22: Central | C22: =($C$18*$C$4) + ($C$17*LOG10($C$5)) + $C$16 -> -3.49822 | E22: Eq
B23: Lower 95% CI | C23: =$C$22 - ($C$20 * $C$19 * ($C$14^0.5)) -> -4.037167553 | E23: Eq
B24: Upper 95% CI | C24: =$C$22 + ($C$20 * $C$19 * ($C$14^0.5)) -> -2.959272447 | E24: Eq
A25: Estimated dermal permeability rate (Kp) | B25: Kp = | C25: 10Log(Kp)
B26: Central | C26: =10^C22 -> 0.0003175265173 | D26: cm/hour | E26: Eq
B27: Lower 95% CI | C27: =10^C23 -> 9.179783681e-05 | E27: Eq
B28: Upper 95% CI | C28: =10^C24 -> 0.001098316613 | E28: Eq

Sheet B06
A1: Calculation of First-Order Dermal Absorption Rate using MW and Kow for Emamectin benzoate.
A2: Short Title | B2: Calculation of ka
A3: Parameter/Assumption | B3: Code / Range | C3: Equation/ Value | D3: Units | E3: Reference/Designation
A4: Molecular weight | B4: MW | C4: 886.1 | D4: g/mole | E4: Section 3.1.3.2.1.
A5: Ko/w | B5: Kow | C5: 100000 | D5: unitless | E5: Section 3.1.3.2.1.
A6: Vector a[] | B6: a[1] | C6: 1
B7: a[2] | C7: =C4 -> 886.1
B8: a[3] | C8: =LOG10(C5) -> 5
A9: Transpose of a[] (a') | B9: =$C$6 -> 1 | C9: =$C$7 -> 886.1 | D9: =$C$8 -> 5
A10: X'X Cross Product Matrix | B10: X'X
B11: 0.307537 | C11: -0.00103089 | D11: 0.00822769
B12: -0.00103089 | C12: 4.377e-06 | D12: -9.44359e-05
B13: 0.00822769 | C13: -9.44359e-05 | D13: 0.0085286
A14: a'X'X a | B14: a'X'X a | C14: =MMULT(B9:D9,MMULT(B11:D13, C6:C8)) -> 1.375992272
A15: Coefficients for model
A16: Intercept | B16: K0 | C16: -1.49615
A17: Coeff for Log10(Kow) | B17: K1 | C17: 0.233255
A18: Coeff for MW | B18: K2 | C18: -0.005657
A19: Standard deviation of model | B19: s | C19: 0.787218
A20: Critical value at 0.025 with 26 d.f. | B20: t0.025 | C20: 2.056
A21: Log10 of Estimated first-order absorption rate | B21: Log(ka) = | C21: K1 MW × K2 Log10(Kow) + K0
B22: Central | C22: =($C$18*$C$4) + ($C$17*LOG10($C$5)) + $C$16 -> -5.3425427 | E22: Eq
B23: Lower 95% CI | C23: =$C$22 - ($C$20 * $C$19 * ($C$14^0.5)) -> -7.241110555 | E23: Eq
B24: Upper 95% CI | C24: =$C$22 + ($C$20 * $C$19 * ($C$14^0.5)) -> -3.443974845 | E24: Eq
A25: Estimated first-order absorption rate | B25: ka = | C25: 10Log(ka)
B26: Central | C26: =10^C22 -> 4.544198563e-06 | D26: hour-1 | E26: Eq
B27: Lower 95% CI | C27: =10^C23 -> 5.739703318e-08 | E27: Eq
B28: Upper 95% CI | C28: =10^C24 -> 0.0003597701733 | E28: Eq
C29: 1-exp(-ka T)
A30: Prop for 24-h | B30: Central | C30: =1-EXP(-C26*24) -> 0.0001090548186
B31: Lower 95% CI | C31: =1-EXP(-C27*24) -> 1.377527848e-06
B32: Upper 95% CI | C32: =1-EXP(-C28*24) -> 0.00859731406
A34: Rates per day | C34: Hourx24
B35: Central | C35: =C26*24 -> 0.0001090607655 | D35: day-1
B36: Lower 95% CI | C36: =C27*24 -> 1.377528796e-06
B37: Upper 95% CI | C37: =C28*24 -> 0.00863448416
B39: Experimental | C39: 0.018 | D39: day-1
B40: Exp/QSAR_C | C40: =ROUND(C39/ROUND(C35,5),0) -> 164

Sheet B06-Alt
A1: Calculation of First-Order Dermal Absorption Rate using Kow for Emamectin benzoate but upper bound MW of 400 g/mole.
A2: Short Title | B2: Calculation of ka
A3: Parameter/Assumption | B3: Code / Range | C3: Equation/ Value | D3: Units | E3: Reference/Designation
A4: Molecular weight | B4: MW | C4: 400 | D4: g/mole | E4: Section 3.1.3.2.1.
A5: Ko/w | B5: Kow | C5: 100000 | D5: unitless | E5: Section 3.1.3.2.1.
A6: Vector a[] | B6: a[1] | C6: 1
B7: a[2] | C7: =C4 -> 400
B8: a[3] | C8: =LOG10(C5) -> 5
A9: Transpose of a[] (a') | B9: =$C$6 -> 1 | C9: =$C$7 -> 400 | D9: =$C$8 -> 5
A10: X'X Cross Product Matrix | B10: X'X
B11: 0.307537 | C11: -0.00103089 | D11: 0.00822769
B12: -0.00103089 | C12: 4.377e-06 | D12: -9.44359e-05
B13: 0.00822769 | C13: -9.44359e-05 | D13: 0.0085286
A14: a'X'X a | B14: a'X'X a | C14: =MMULT(B9:D9,MMULT(B11:D13, C6:C8)) -> 0.1008933
A15: Coefficients for model
A16: Intercept | B16: K0 | C16: -1.49615
A17: Coeff for Log10(Kow) | B17: K1 | C17: 0.233255
A18: Coeff for MW | B18: K2 | C18: -0.005657
A19: Standard deviation of model | B19: s | C19: 0.787218
A20: Critical value at 0.025 with 26 d.f. | B20: t0.025 | C20: 2.056
A21: Log10 of Estimated first-order absorption rate | B21: Log(ka) = | C21: K1 MW × K2 Log10(Kow) + K0
B22: Central | C22: =($C$18*$C$4) + ($C$17*LOG10($C$5)) + $C$16 -> -2.592675 | E22: Eq
B23: Lower 95% CI | C23: =$C$22 - ($C$20 * $C$19 * ($C$14^0.5)) -> -3.106776996 | E23: Eq
B24: Upper 95% CI | C24: =$C$22 + ($C$20 * $C$19 * ($C$14^0.5)) -> -2.078573004 | E24: Eq
A25: Estimated first-order absorption rate | B25: ka = | C25: 10Log(ka)
B26: Central | C26: =10^C22 -> 0.002554612307 | D26: hour-1 | E26: Eq
B27: Lower 95% CI | C27: =10^C23 -> 0.000782029263 | E27: Eq
B28: Upper 95% CI | C28: =10^C24 -> 0.008345012578 | E28: Eq
C29: 1-exp(-ka T)
A30: Prop for 24-h | B30: Central | C30: =1-EXP(-C26*24) -> 0.05946902423
B31: Lower 95% CI | C31: =1-EXP(-C27*24) -> 0.01859366699
B32: Upper 95% CI | C32: 0.1814987065
A34: Rates per day | C34: Hourx24
B35: Central | C35: =C26*24 -> 0.06131069536 | D35: day-1
B36: Lower 95% CI | C36: =C27*24 -> 0.01876870231
B37: Upper 95% CI | C37: 0.2002803019

Sheet B07
A1: Calculations for Emamectin benzoate dosing and concentrations in leaves.
B3: Dosing for ash trees by DBH | K3: Estimated concentrations of emamectin benzoate in ash trees.
B4: The dosing information below is taken from the Tree-äge Label at the Arborject Web Site | L4: The ash tree weight is estimated from the allometric equation from Ter-Mikaelian and Korzukhin (1997).
L5: alpha | M5: 0.1063 | N5: beta | O5: 2.4798
C6: Dose as mL Per Tree | F6: Dose as mg a,i.per Tree | M6: Concentration in Whole Ash Trees (mg/kg)
B7: Mid-PointDBH (Inches) | C7: Low Dose | D7: Medium Dose | E7: HighDose | F7: Low Dose | G7: Medium Dose | H7: HighDose | K7: Mid-PointDBH (cm) | L7: Tree Dry Weight (kg) | M7: Low Dose | N7: Medium Dose | O7: HighDose
B8: 5 | C8: 15 | D8: 25 | F8: =C8*$D$32*$D$33*1000 -> 648 | G8: =D8*$D$32*$D$33*1000 -> 1080 | K8: =2.54*B8 -> 12.7 | L8: =$M$5 * K8^$O$5 -> 58.04244944 | M8: =F8/$L8 -> 11.16424283 | N8: 18.60707138
B9: 8 | C9: 20 | D9: 40 | F9: =C9*$D$32*$D$33*1000 -> 864 | G9: 1728 | K9: =2.54*B9 -> 20.32 | L9: =$M$5 * K9^$O$5 -> 186.1754725 | M9: 4.640783173 | N9: 9.281566346
B10: 12 | C10: 30 | D10: 55 | E10: 165 | F10: 1296 | G10: 2376 | H10: 7128 | K10: 30.48 | L10: 508.8544408 | M10: 2.546897298 | N10: 4.669311712 | O10: =H10/$L10 -> 14.00793514
B11: 14 | C11: 35 | D11: 70 | E11: 210 | F11: 1512 | G11: 3024 | H11: 9072 | K11: 35.56 | L11: 745.7756819 | M11: 2.027419285 | N11: 4.054838571 | O11: 12.16451571
B12: 17 | C12: 40 | D12: 75 | E12: 225 | F12: 1728 | G12: 3240 | H12: 9720 | K12: 43.18 | L12: 1206.999667 | M12: 1.431649111 | N12: 2.684342083 | O12: 8.053026249
B13: 20 | C13: 50 | D13: 100 | E13: 300 | F13: 2160 | G13: 4320 | H13: 12960 | K13: 50.8 | L13: 1806.068002 | M13: 1.195968257 | N13: 2.391936514 | O13: 7.175809542
B14: 23 | D14: 115 | E14: 345 | G14: 4968 | H14: 14904 | K14: 58.42 | L14: 2554.186486 | N14: =G14/$L14 -> 1.945042003 | O14: 5.83512601
B15: 26 | D15: 130 | E15: 390 | G15: 5616 | H15: 16848 | K15: 66.04 | L15: 3461.711121 | N15: 1.62231908 | O15: 4.866957239
B16: 29 | D16: 145 | E16: 435 | G16: 6264 | H16: 18792 | K16: 73.66 | L16: 4538.313262 | N16: 1.380248484 | O16: 4.140745453
B17: 32 | D17: 160 | E17: 480 | G17: 6912 | H17: 20736 | K17: 81.28 | L17: 5793.097411 | N17: 1.193144101 | O17: 3.579432302
B18: 36 | D18: 175 | E18: 525 | G18: 7560 | H18: 22680 | K18: 91.44 | L18: 7758.162222 | N18: 0.974457582 | O18: 2.923372746
B19: 38 | D19: 190 | E19: 570 | G19: 8208 | H19: 24624 | K19: 96.52 | L19: 8871.300243 | N19: 0.9252307751 | O19: 2.775692325
B20: 41 | D20: 205 | E20: 615 | G20: 8856 | H20: 26568 | K20: 104.14 | L20: 10710.78552 | N20: 0.8268301126 | O20: 2.480490338
B21: 44 | D21: 220 | E21: 660 | G21: 9504 | H21: 28512 | K21: 111.76 | L21: 12760.6813 | N21: 0.7447878196 | O21: 2.234363459
B22: 47 | D22: 235 | E22: 705 | G22: 10152 | H22: 30456 | K22: 119.38 | L22: 15028.24211 | N22: 0.6755281107 | O22: 2.026584332
B23: 50 | D23: 250 | E23: 750 | G23: 10800 | H23: 32400 | K23: 127 | L23: 17520.46917 | N23: 0.6164218489 | O23: 1.849265547
B24: 53 | D24: 265 | E24: 795 | G24: 11448 | H24: 34344 | K24: 134.62 | L24: 20244.13461 | N24: 0.5654971289 | O24: 1.696491387
B25: 56 | D25: 280 | E25: 840 | G25: =D25*$D$32*$D$33*1000 -> 12096 | H25: 36288 | K25: 142.24 | L25: 23205.80211 | N25: 0.5212489508 | O25: 1.563746852
B26: 59 | D26: 295 | E26: 885 | G26: 12744 | H26: 38232 | K26: 149.86 | L26: 26411.84461 | N26: 0.4825107897 | O26: 1.447532369
B27: 62 | D27: 310 | E27: 930 | G27: 13392 | H27: 40176 | K27: 157.48 | L27: 29868.45968 | N27: 0.4483659399 | O27: 1.34509782
B28: 65 | D28: 325 | E28: 975 | G28: 14040 | H28: 42120 | K28: 165.1 | L28: 33581.68293 | N28: 0.4180850623 | O28: 1.254255187
B29: 68 | D29: 340 | E29: 1020 | G29: 14688 | H29: 44064 | K29: 172.72 | L29: 37557.39975 | N29: 0.3910813873 | O29: 1.173244162
B30: 71 | D30: 355 | E30: 1065 | G30: 15336 | H30: 46008 | K30: 180.34 | L30: 41801.35581 | N30: 0.3668780522 | O30: 1.100634157
C32: Density: | D32: 1.08 | E32: g/mL
C33: a.i.: | D33: 0.04 | E33: w/w

Sheet C01a
A1: Exposure estimates for Workers based on Standard Forest Service Methods with PPE
A2: Short Title | B2: General exposure | E2: WkGenExp
A3: Receptor | B3: Backpack Worker | E3: Worksheet A01
A4: Duration | B4: Chronic
A5: Parameter/Assumption | B5: Code / Range | C5: Equation/ Value | D5: Units | E5: Reference/Equation
A6: Amount handled per day: | B6: Amnt
B7: Central | C7: ='A01'!C9 -> 0.272 | D7: lb/day | E7: Worksheet A01
B8: Lower | C8: ='A01'!C10 -> 0.136 | E8: Worksheet A01
B9: Upper | C9: ='A01'!C11 -> 0.544 | E9: Worksheet A01
A10: Absorbed dose rate: | B10: ADR
B11: Central | C11: =[1]A01!C$67 -> 0.003 | D11: (mg agent/kg bw) ÷ (lbs agent handled per day) | E11: Section 3.2.2.1
B12: Lower | C12: =[1]A01!C$68 -> 0.0003 | E12: Section 3.2.2.1
B13: Upper | C13: =[1]A01!C$69 -> 0.01 | E13: Section 3.2.2.1
A14: Clothing Protection Factor | B14: Prot
B15: Central | C15: 0.9922 | D15: Unitless (value between 0 [no protection] and 1 [complete protection]) | E15: Section 3.2.2.1
B16: Upper | C16: 0.9922 | E16: Section 3.2.2.1
B17: Lower | C17: 0.9922 | E17: Section 3.2.2.1
A18: Absorbed dose | B18: Dose | C18: Amnt × ADR × (1-Prot)
B19: Central | C19: =C7*C11*(1-C15) -> 6.3648e-06 | D19: mg/kg bw/day | E19: Eq
B20: Lower | C20: =C8*C12*(1-C16) -> 3.1824e-07 | E20: Eq
B21: Upper | C21: =C9*C13*(1-C17) -> 4.2432e-05 | E21: Eq

Sheet C01a-Sup
A1: Exposure estimates for Workers based on Standard Forest Service Methods Without PPE
A2: Short Title | B2: General exposure | E2: WkGenExp
A3: Receptor | B3: Backpack Worker | E3: Worksheet A01
A4: Duration | B4: Chronic
A5: Parameter/Assumption | B5: Code / Range | C5: Equation/ Value | D5: Units | E5: Reference/Equation
A6: Amount handled per day: | B6: Amnt
B7: Central | C7: ='A01'!C9 -> 0.272 | D7: lb/day | E7: Worksheet A01
B8: Lower | C8: ='A01'!C10 -> 0.136 | E8: Worksheet A01
B9: Upper | C9: ='A01'!C11 -> 0.544 | E9: Worksheet A01
A10: Absorbed dose rate: | B10: ADR
B11: Central | C11: =[1]A01!C$67 -> 0.003 | D11: (mg agent/kg bw) ÷ (lbs agent handled per day) | E11: Section 3.2.2.1
B12: Lower | C12: =[1]A01!C$68 -> 0.0003 | E12: Section 3.2.2.1
B13: Upper | C13: =[1]A01!C$69 -> 0.01 | E13: Section 3.2.2.1
A14: Clothing Protection Factor | B14: Prot
B15: Central | C15: 0 | D15: Unitless (value between 0 [no protection] and 1 [complete protection]) | E15: Section 3.2.2.1
B16: Upper | C16: 0 | E16: Section 3.2.2.1
B17: Lower | C17: 0 | E17: Section 3.2.2.1
A18: Absorbed dose | B18: Dose | C18: Amnt × ADR × (1-Prot)
B19: Central | C19: =C7*C11*(1-C15) -> 0.000816 | D19: mg/kg bw/day | E19: Eq
B20: Lower | C20: =C8*C12*(1-C16) -> 4.08e-05 | E20: Eq
B21: Upper | C21: =C9*C13*(1-C17) -> 0.00544 | E21: Eq

Sheet C01b
A1: Exposure estimates based on Pesticide Handlers Exposure Database (PHED) Method With Gloves
A2: Short Title | B2: General exposure | E2: Param->Short_Title
A3: Receptor | B3: Worker
A4: Duration | B4: Acute
A5: Parameter/Assumption | B5: Code / Range | C5: Equation/ Value | D5: Units | E5: Reference/Equation
A6: Body Weight | B6: BW | C6: 70 | E6: Scenario assumption
A7: Amount a.i. handled per day (a.e. for weak acids): | B7: Amnt | C7: InjAmnt x Ninj
B8: Central | C8: ='A01'!C9 -> 0.272 | D8: lb a.i. | E8: Worksheet A01
B9: Lower | C9: ='A01'!C10 -> 0.136 | E9: Worksheet A01
B10: Upper | C10: ='A01'!C11 -> 0.544 | E10: Worksheet A01
A11: Dermal Exposure Rate: | B11: DermRate
B12: Central | C12: 2.9 | D12: mg per lb handled | E12: Section 3.2.2.1.2.
B13: Lower | C13: 2.9 | E13: Section 3.2.2.1.2.
B14: Upper | C14: 2.9 | E14: Section 3.2.2.1.2.
A15: PPE Factor for Dermal Exposure: | B15: DermPPE
B16: Central | C16: 0.9922 | D16: Proportion | E16: Section 3.2.2.1.2.
B17: Upper | C17: 0.9922 | E17: Section 3.2.2.1.2.
B18: Lower | C18: 0.9922 | E18: Section 3.2.2.1.2.
A19: Amount Deposited on Skin | B19: DermAmnt | C19: Amnt × DermRate × (1-DermPPE)
B20: Central | C20: =C8*C12*(1-C16) -> 0.00615264 | D20: mg/day | E20: Eq.
B21: Lower | C21: =C9*C13*(1-C17) -> 0.00307632 | E21: Eq.
B22: Upper | C22: =C10*C14*(1-C18) -> 0.01230528 | E22: Eq.
A23: First-order dermal absorption rates | B23: ka
B24: Central | C24: 0.018 | D24: day-1 | E24: Section 3.1.3.2.1
B25: Lower | C25: 0.018 | E25: Section 3.1.3.2.1
B26: Upper | C26: 0.018 | E26: Section 3.1.3.2.1
A27: Absorbed Dermal Dose | B27: DermAbs | C27: Amnt × Prop
B28: Central | C28: =C20*C24 -> 0.00011074752 | D28: mg | E28: Eq.
B29: Lower | C29: =C21*C25 -> 5.537376e-05 | D29: mg | E29: Eq.
B30: Upper | C30: 0.00022149504 | D30: mg | E30: Eq.
A31: Inhalation Exposure Rate: | B31: InhExpRate
B32: Central | C32: 0.0012 | D32: mg/lb handled | E32: Section 3.2.2.1.2.
B33: Lower | C33: 0.0012 | E33: Section 3.2.2.1.2.
B34: Upper | C34: 0.0012 | E34: Section 3.2.2.1.2.
A35: PPE Factor for Inhalation Exposure: | B35: InhPPE
B36: Central | C36: 0 | D36: Proportion | E36: N/A
B37: Upper | C37: 0 | E37: N/A
B38: Lower | C38: 0 | E38: N/A
A39: Inhalation Absorption Rate: | B39: InhRate | C39: 1 | D39: Proportion
A40: Absorbed Inhalation Dose | B40: InhAbs | C40: Amnt × InhExpRate × (1-InhPPE)
B41: Central | C41: =C8*C32*C$39 -> 0.0003264 | D41: mg | E41: Eq.
B42: Lower | C42: =C9*C33*C$39 -> 0.0001632 | E42: Eq.
B43: Upper | C43: =C10*C34*C$39 -> 0.0006528 | E43: Eq.
A44: Total Absorbed dose | B44: Dose | C44: (DermAbs + InhAbs) ÷ BW
B45: Central | C45: =(C28+C41)/C$6 -> 6.244964571e-06 | D45: mg/kg bw/day | E45: Eq
B46: Lower | C46: =(C29+C42)/C$6 -> 3.122482286e-06 | E46: Eq
B47: Upper | C47: =(C30+C43)/C$6 -> 1.248992914e-05 | E47: Eq

Sheet C01b-Sup
A1: Exposure estimates based on Pesticide Handlers Exposure Database (PHED) Method Without Gloves
A2: Short Title | B2: General exposure
A3: Receptor | B3: Worker
A4: Duration | B4: Acute
A5: Parameter/Assumption | B5: Code / Range | C5: Equation/ Value | D5: Units | E5: Reference/Equation
A6: Body Weight | B6: BW | C6: 70 | E6: Scenario assumption
A7: Amount a.i. handled per day (a.e. for weak acids): | B7: Amnt | C7: InjAmnt x Ninj
B8: Central | C8: ='A01'!C9 -> 0.272 | D8: lb a.i. | E8: Worksheet A01
B9: Lower | C9: ='A01'!C10 -> 0.136 | E9: Worksheet A01
B10: Upper | C10: ='A01'!C11 -> 0.544 | E10: Worksheet A01
A11: Dermal Exposure Rate: | B11: DermRate
B12: Central | C12: 2.9 | D12: mg per lb handled | E12: Section 3.2.2.1.2.
B13: Lower | C13: 2.9 | E13: Section 3.2.2.1.2.
B14: Upper | C14: 2.9 | E14: Section 3.2.2.1.2.
A15: PPE Factor for Dermal Exposure: | B15: DermPPE
B16: Central | C16: 0 | D16: Proportion | E16: Section 3.2.2.1.2.
B17: Upper | C17: 0 | E17: Section 3.2.2.1.2.
B18: Lower | C18: 0 | E18: Section 3.2.2.1.2.
A19: Amount Deposited on Skin | B19: DermAmnt | C19: Amnt × DermRate × (1-DermPPE)
B20: Central | C20: =C8*C12*(1-C16) -> 0.7888 | D20: mg/day | E20: Eq.
B21: Lower | C21: =C9*C13*(1-C17) -> 0.3944 | E21: Eq.
B22: Upper | C22: =C10*C14*(1-C18) -> 1.5776 | E22: Eq.
A23: First-order dermal absorption rates | B23: ka
B24: Central | C24: 0.018 | D24: day-1 | E24: Section 3.1.3.2.1
B25: Lower | C25: 0.018 | E25: Section 3.1.3.2.1
B26: Upper | C26: 0.018 | E26: Section 3.1.3.2.1
A27: Absorbed Dermal Dose | B27: DermAbs | C27: Amnt × Prop
B28: Central | C28: =C20*C24 -> 0.0141984 | D28: mg | E28: Eq.
B29: Lower | C29: =C21*C25 -> 0.0070992 | D29: mg | E29: Eq.
B30: Upper | C30: 0.0283968 | D30: mg | E30: Eq.
A31: Inhalation Exposure Rate: | B31: InhExpRate
B32: Central | C32: 0.0012 | D32: mg/lb handled | E32: Section 3.2.2.1.2.
B33: Lower | C33: 0.0012 | E33: Section 3.2.2.1.2.
B34: Upper | C34: 0.0012 | E34: Section 3.2.2.1.2.
A35: PPE Factor for Inhalation Exposure: | B35: InhPPE
B36: Central | C36: 0 | D36: Proportion | E36: N/A
B37: Upper | C37: 0 | E37: N/A
B38: Lower | C38: 0 | E38: N/A
A39: Inhalation Absorption Rate: | B39: InhRate | C39: 1 | D39: Proportion
A40: Absorbed Inhalation Dose | B40: InhAbs | C40: Amnt × InhExpRate × (1-InhPPE)
B41: Central | C41: =C8*C32*C$39 -> 0.0003264 | D41: mg | E41: Eq.
B42: Lower | C42: =C9*C33*C$39 -> 0.0001632 | E42: Eq.
B43: Upper | C43: =C10*C34*C$39 -> 0.0006528 | E43: Eq.
A44: Total Absorbed dose | B44: Dose | C44: (DermAbs + InhAbs) ÷ BW
B45: Central | C45: =(C28+C41)/C$6 -> 0.0002074971429 | D45: mg/kg bw/day | E45: Eq
B46: Lower | C46: =(C29+C42)/C$6 -> 0.0001037485714 | E46: Eq
B47: Upper | C47: =(C30+C43)/C$6 -> 0.0004149942857 | E47: Eq

Sheet C02a
A1: Accidental Dermal Exposure Assessment Using Zero-Order Absorption, Worker, Surface Area, Hands, for 1 minute(s)
A2: Short Title | B2: Contaminated Gloves, 1 minute | E2: DrmZr
A3: Receptor | B3: Worker
A4: Duration | B4: Acute
A5: Surface Contaminated | B5: Surface Area, Hands
A6: Parameter/Assumption | B6: Code / Range | C6: Equation/ Value | D6: Units | E6: Reference/Designation
A7: Surface Area | B7: SA | C7: ='A02'!$C$141 -> 840 | D7: cm2 | E7: U.S. EPA/ORD 1992
A8: Duration of Exposure | B8: T_min | C8: 1 | D8: minutes | E8: Scenario parameter
B9: T_hr | C9: =C8/60 -> 0.01666666667 | D9: hours | E9: Eq
A10: Body weight | B10: BW | C10: ='A02'!$C$140 -> 70 | D10: kg | E10: ICRP 1975
A11: Concentration in solution (mg/mL) | B11: Conc
B12: Central | C12: ='A01'!C20 -> 21.6 | D12: mg/mL | E12: Worksheet A01
B13: Lower | C13: ='A01'!C21 -> 10.8 | E13: Worksheet A01
B14: Upper | C14: ='A01'!C22 -> 43.2 | E14: Worksheet A01
A15: Toxic Equivalency Factor for formulation: (See risk assessment if this has a value other than 1.) | B15: TEF
B16: Central | C16: =[1]A01!C$35 -> 1 | D16: Unitless | E16: Worksheet A01
B17: Lower | C17: =[1]A01!C$36 -> 1 | E17: Worksheet A01
B18: Upper | C18: =[1]A01!C$37 -> 1 | E18: Worksheet A01
A19: Dermal permeability | B19: Kp
B20: Central | C20: ='B01'!C13 -> 0.00032 | D20: cm/hour | E20: Section 3.2.2.2
B21: Lower | C21: ='B01'!C14 -> 9.2e-05 | E21: Section 3.2.2.2
B22: Upper | C22: ='B01'!C15 -> 0.001 | E22: Section 3.2.2.2
A23: Absorbed Dose | B23: Dose | C23: Kp × Conc × T_hr × SA x TEF ÷ BW
B24: Central | C24: =C20*C12*C$9*C$7*C16/C$10 -> 0.0013824 | D24: mg/kg | E24: Eq
B25: Lower | C25: =C21*C13*C$9*C$7*C17/C$10 -> 0.00019872 | D25: mg/kg | E25: Eq
B26: Upper | C26: =C22*C14*C$9*C$7*C18/C$10 -> 0.00864 | D26: mg/kg | E26: Eq

Sheet C02b
A1: Accidental Dermal Exposure Assessment Using Zero-Order Absorption, Worker, Surface Area, Hands, for 60 minute(s)
A2: Short Title | B2: Contaminated Gloves, 60 minutes | E2: DrmZr
A3: Receptor | B3: Worker
A4: Duration | B4: Acute
A5: Surface Contaminated | B5: Surface Area, Hands
A6: Parameter/Assumption | B6: Code / Range | C6: Equation/ Value | D6: Units | E6: Reference/Designation
A7: Surface Area | B7: SA | C7: ='A02'!$C$141 -> 840 | D7: cm2 | E7: U.S. EPA/ORD 1992
A8: Duration of Exposure | B8: T_min | C8: 60 | D8: minutes | E8: Scenario parameter
B9: T_hr | C9: =C8/60 -> 1 | D9: hours | E9: Eq
A10: Body weight | B10: BW | C10: ='A02'!$C$140 -> 70 | D10: kg | E10: ICRP 1975
A11: Concentration in solution (mg/mL) | B11: Conc
B12: Central | C12: ='A01'!C20 -> 21.6 | D12: mg/mL | E12: Worksheet A01
B13: Lower | C13: ='A01'!C21 -> 10.8 | E13: Worksheet A01
B14: Upper | C14: ='A01'!C22 -> 43.2 | E14: Worksheet A01
A15: Toxic Equivalency Factor for formulation: (See risk assessment if this has a value other than 1.) | B15: TEF
B16: Central | C16: =[1]A01!C$35 -> 1 | D16: Unitless | E16: Worksheet A01
B17: Lower | C17: =[1]A01!C$36 -> 1 | E17: Worksheet A01
B18: Upper | C18: =[1]A01!C$37 -> 1 | E18: Worksheet A01
A19: Dermal permeability | B19: Kp
B20: Central | C20: ='B01'!C13 -> 0.00032 | D20: cm/hour | E20: Section 3.2.2.2
B21: Lower | C21: ='B01'!C14 -> 9.2e-05 | E21: Section 3.2.2.2
B22: Upper | C22: ='B01'!C15 -> 0.001 | E22: Section 3.2.2.2
A23: Absorbed Dose | B23: Dose | C23: Kp × Conc × T_hr × SA x TEF ÷ BW
B24: Central | C24: =C20*C12*C$9*C$7*C16/C$10 -> 0.082944 | D24: mg/kg | E24: Eq
B25: Lower | C25: =C21*C13*C$9*C$7*C17/C$10 -> 0.0119232 | D25: mg/kg | E25: Eq
B26: Upper | C26: =C22*C14*C$9*C$7*C18/C$10 -> 0.5184 | D26: mg/kg | E26: Eq

Sheet C03a
A1: Accidental Dermal Exposure Assessment Using First-Order Absorption, Worker, Surface Area, Hands, for 60 minute(s)
A2: Short Title | B2: Spill on hands, 1 hour | E2: DrmFOA
A3: Receptor | B3: Worker
A4: Duration | B4: Acute
A5: Surface Contaminated | B5: Surface Area, Hands
A6: Parameter/Assumption | B6: Code / Range | C6: Equation/ Value | D6: Units | E6: Reference/Designation
A7: Surface Area | B7: SA | C7: ='A02'!$C$141 -> 840 | D7: cm2 | E7: U.S. EPA/ORD 1992
A8: Duration of Exposure | C8: 60 | D8: minutes | E8: Scenario parameter
B9: T | C9: =C8/60 -> 1 | D9: hours | E9: Eq
A10: Body weight | B10: BW | C10: ='A02'!$C$140 -> 70 | D10: kg | E10: ICRP 1975
A11: Liquid adhering to skin | B11: L | C11: ='A02'!$C$109 -> 0.008 | D11: mL/cm2 | E11: Mason and Johnson 1987
A12: Concentration in solution | B12: Conc
B13: Central | C13: ='A01'!C20 -> 21.6 | D13: mg/mL | E13: Worksheet A01
B14: Lower | C14: ='A01'!C21 -> 10.8 | E14: Worksheet A01
B15: Upper | C15: ='A01'!C22 -> 43.2 | E15: Worksheet A01
A16: First-order dermal absorption rates | B16: ka
B17: Central | C17: ='B03'!C8 -> 0.00075 | D17: hour-1 | E17: Section 3.2.2.2
B18: Lower | C18: ='B03'!C9 -> 0.00075 | E18: Section 3.2.2.2
B19: Upper | C19: ='B03'!C10 -> 0.00075 | E19: Section 3.2.2.2
A20: Toxic Equivalency Factor for formulation: (See risk assessment if this has a value other than 1.) | B20: TEF
B21: Central | C21: 1 | D21: Unitless | E21: Worksheet A01
B22: Lower | C22: 1 | E22: Worksheet A01
B23: Upper | C23: 1 | E23: Worksheet A01
A24: Amount Deposited on Skin | B24: Amnt | C24: L × SA × Conc x TEF
B25: Central | C25: =$C$11*$C$7*C13*C21 -> 145.152 | D25: mg | E25: Eq
B26: Lower | C26: =$C$11*$C$7*C14*C22 -> 72.576 | E26: Eq
B27: Upper | C27: =$C$11*$C$7*C15*C23 -> 290.304 | E27: Eq
A28: Proportion absorbed over period T | B28: Prop | C28: 1-exp(-ka T)
B29: Central | C29: =1-EXP(-C17 *$C$9) -> 0.0007497188203 | D29: hour-1 | E29: Eq
B30: Lower | C30: =1-EXP(-C18 *$C$9) -> 0.0007497188203 | E30: Eq
B31: Upper | C31: =1-EXP(-C19 *$C$9) -> 0.0007497188203 | E31: Eq
A32: Absorbed Dose | B32: Dose | C32: Amnt × Prop ÷ BW
B33: Central | C33: =C25*C29/$C$10 -> 0.001554616946 | D33: mg/kg bw | E33: Eq
B34: Lower | C34: =C26*C30/$C$10 -> 0.0007773084729 | E34: Eq
B35: Upper | C35: =C27*C31/$C$10 -> 0.003109233892 | E35: Eq

Sheet C03b
A1: Accidental Dermal Exposure Assessment Using First-Order Absorption, Worker, Surface Area, Lower legs, for 60 minute(s)
A2: Short Title | B2: Spill on hands, 1 hour | E2: DrmFOA
A3: Receptor | B3: Worker
A4: Duration | B4: Acute
A5: Surface Contaminated | B5: Surface Area, Hands
A6: Parameter/Assumption | B6: Code / Range | C6: Equation/ Value | D6: Units | E6: Reference/Designation
A7: Surface Area | B7: SA | C7: ='A02'!$C$142 -> 2070 | D7: cm2 | E7: U.S. EPA/ORD 1992
A8: Duration of Exposure | C8: 60 | D8: minutes | E8: Scenario parameter
B9: T | C9: =C8/60 -> 1 | D9: hours | E9: Eq
A10: Body weight | B10: BW | C10: ='A02'!$C$140 -> 70 | D10: kg | E10: ICRP 1975
A11: Liquid adhering to skin | B11: L | C11: ='A02'!$C$109 -> 0.008 | D11: mL/cm2 | E11: Mason and Johnson 1987
A12: Concentration in solution | B12: Conc
B13: Central | C13: ='A01'!C20 -> 21.6 | D13: mg/mL | E13: Worksheet A01
B14: Lower | C14: ='A01'!C21 -> 10.8 | E14: Worksheet A01
B15: Upper | C15: ='A01'!C22 -> 43.2 | E15: Worksheet A01
A16: First-order dermal absorption rates | B16: ka
B17: Central | C17: ='B03'!C8 -> 0.00075 | D17: hour-1 | E17: Section 3.2.2.2
B18: Lower | C18: ='B03'!C9 -> 0.00075 | E18: Section 3.2.2.2
B19: Upper | C19: ='B03'!C10 -> 0.00075 | E19: Section 3.2.2.2
A20: Toxic Equivalency Factor for formulation: (See risk assessment if this has a value other than 1.) | B20: TEF
B21: Central | C21: 1 | D21: Unitless | E21: Worksheet A01
B22: Lower | C22: 1 | E22: Worksheet A01
B23: Upper | C23: 1 | E23: Worksheet A01
A24: Amount Deposited on Skin | B24: Amnt | C24: L × SA × Conc x TEF
B25: Central | C25: =$C$11*$C$7*C13*C21 -> 357.696 | D25: mg | E25: Eq
B26: Lower | C26: =$C$11*$C$7*C14*C22 -> 178.848 | E26: Eq
B27: Upper | C27: =$C$11*$C$7*C15*C23 -> 715.392 | E27: Eq
A28: Proportion absorbed over period T | B28: Prop | C28: 1-exp(-ka T)
B29: Central | C29: =1-EXP(-C17 *$C$9) -> 0.0007497188203 | D29: hour-1 | E29: Eq
B30: Lower | C30: =1-EXP(-C18 *$C$9) -> 0.0007497188203 | E30: Eq
B31: Upper | C31: =1-EXP(-C19 *$C$9) -> 0.0007497188203 | E31: Eq
A32: Absorbed Dose | B32: Dose | C32: Amnt × Prop ÷ BW
B33: Central | C33: =C25*C29/$C$10 -> 0.003831020331 | D33: mg/kg bw | E33: Eq
B34: Lower | C34: =C26*C30/$C$10 -> 0.001915510165 | E34: Eq
B35: Upper | C35: =C27*C31/$C$10 -> 0.007662040661 | E35: Eq

Sheet D05
A1: Acute exposure of Child after an accidental spill of the pesticide into a pond
A2: Short Title | B2: Water consumption, accidental spill | E2: WatSpillAmnt
A3: Receptor | B3: Child
A4: Duration | B4: Acute
A5: Parameter/Assumption | B5: Code / Range | C5: Equation/ Value | D5: Units | E5: Reference/Designation
A6: Pond Volume | B6: VPL | C6: ='A01'!C27 -> 20000000 | D6: liters | E6: Worksheet A01
A7: Mg of a.i. spilled into water | B7: MgA.I.
B8: Central | C8: ='A01'!C24 -> 5000 | D8: mg | E8: Worksheet A01
B9: Lower | C9: ='A01'!C25 -> 600 | E9: Worksheet A01
B10: Upper | C10: ='A01'!C26 -> 42600 | E10: Worksheet A01
A11: Concentration in pond water | B11: ConcWat | C11: MgA.I. ÷ VPL
B12: Central | C12: =C8/C$6 -> 0.00025 | D12: mg/L | E12: Eq
B13: Lower | C13: =C9/C$6 -> 3e-05 | E13: Eq
B14: Upper | C14: 0.00213 | E14: Eq
A15: Amount of water consumed in one day | B15: Amnt
B16: Central | C16: ='A03'!$E$38 -> 1 | D16: liters/day | E16: U.S. EPA/ORD 1996
B17: Lower | C17: ='A03'!$E$39 -> 0.61 | E17: U.S. EPA/ORD 1996
B18: Upper | C18: ='A03'!$E$40 -> 1.5 | E18: U.S. EPA/ORD 1996
A19: Body weight | B19: BW | C19: =[1]A02!$C$56 -> 13.3 | D19: kg | E19: U.S. EPA/ORD 1996
A20: Dose | B20: Dose | C20: ConcWat × Amnt ÷ BW
B21: Central | C21: =C12*C16/C$19 -> 1.879699248e-05 | D21: mg/kg | E21: Eq
B22: Lower | C22: =C13*C17/C$19 -> 1.37593985e-06 | D22: mg/kg | E22: Eq
B23: Upper | C23: =C14*C18/C$19 -> 0.0002402255639 | D23: mg/kg | E23: Eq

Sheet D08a
A1: Acute scenario for the consumption of contaminated fish by Adult Male after an accidental spill of the pesticide into a pond
A2: Short Title | B2: Fish consumption, accidental spill | E2: FishAmntSpill
A3: Receptor | B3: Adult Male
A4: Duration | B4: Acute
A5: Parameter/Assumption | B5: Code / Range | C5: Equation/ Value | D5: Units | E5: Reference/Designation
A6: Pond Volume | B6: VPL | C6: ='A01'!C27 -> 20000000 | D6: liters | E6: Worksheet A01
A7: Mg of a.i. spilled into water | B7: MgA.I.
B8: Central | C8: ='A01'!C24 -> 5000 | D8: mg | E8: Worksheet A01
B9: Lower | C9: ='A01'!C25 -> 600 | E9: Worksheet A01
B10: Upper | C10: ='A01'!C26 -> 42600 | E10: Worksheet A01
A11: Concentration in pond water | B11: ConcWat | C11: MgA.I. ÷ VPL
B12: Central | C12: =C8/C$6 -> 0.00025 | D12: mg/L | E12: Eq
B13: Lower | C13: =C9/C$6 -> 3e-05 | E13: Eq
B14: Upper | C14: 0.00213 | E14: Eq
A15: Bioconcentration factor | B15: BCF
B16: Central | C16: ='B01'!$C$3 -> 30 | D16: L/kg | E16: Section 3.2.3.5.
B17: Lower | C17: ='B01'!$C$3 -> 30 | E17: Section 3.2.3.5.
B18: Upper | C18: ='B01'!$C$3 -> 30 | E18: Section 3.2.3.5.
A19: Concentration in fish | B19: ConcFish | C19: ConcWat × BCF
B20: Central | C20: =C12*C16 -> 0.0075 | D20: mg/kg | E20: Eq
B21: Lower | C21: =C13*C17 -> 0.0009 | E21: Eq
B22: Upper | C22: =C14*C18 -> 0.0639 | E22: Eq
A23: Amount of fish consumed | B23: Amnt
B24: Central | C24: ='A03'!$E$19 -> 0.158 | D24: kg/day | E24: Ruffle et al. 1994
B25: Lower | C25: ='A03'!$E$19 -> 0.158 | E25: Ruffle et al. 1994
B26: Upper | C26: ='A03'!$E$19 -> 0.158 | E26: Ruffle et al. 1994
A27: Toxic Equivalency Factor for formulation: (See risk assessment if this has a value other than 1.) | B27: TEF
B28: Central | C28: 1 | D28: Unitless | E28: Worksheet A01
B29: Lower | C29: 1 | E29: Worksheet A01
B30: Upper | C30: 1 | E30: Worksheet A01
A31: Body weight | B31: BW | C31: ='A02'!$C$7 -> 70 | D31: kg | E31: ICRP 1975
A32: Dose | B32: Dose | C32: ConcFish × Amnt × TEF ÷ BW
B33: Central | C33: =C20*C24*C28/C$31 -> 1.692857143e-05 | D33: mg/kg | E33: Eq
B34: Lower | C34: =C21*C25*C29/C$31 -> 2.031428571e-06 | D34: mg/kg | E34: Eq
B35: Upper | C35: =C22*C26*C30/C$31 -> 0.0001442314286 | D35: mg/kg | E35: Eq

Sheet D08b
A1: Acute scenario for the consumption of contaminated fish by Subsistence Populations after an accidental spill of the pesticide into a pond
A2: Short Title | B2: Fish consumption, accidental spill | E2: FishAmntSpill
A3: Receptor | B3: Subsistence Populations
A4: Duration | B4: Acute
A5: Parameter/Assumption | B5: Code / Range | C5: Equation/ Value | D5: Units | E5: Reference/Designation
A6: Pond Volume | B6: VPL | C6: ='A01'!C27 -> 20000000 | D6: liters | E6: Worksheet A01
A7: Mg of a.i. spilled into water | B7: MgA.I.
B8: Central | C8: ='A01'!C24 -> 5000 | D8: mg | E8: Worksheet A01
B9: Lower | C9: ='A01'!C25 -> 600 | E9: Worksheet A01
B10: Upper | C10: ='A01'!C26 -> 42600 | E10: Worksheet A01
A11: Concentration in pond water | B11: ConcWat | C11: MgA.I. ÷ VPL
B12: Central | C12: =C8/C$6 -> 0.00025 | D12: mg/L | E12: Eq
B13: Lower | C13: =C9/C$6 -> 3e-05 | E13: Eq
B14: Upper | C14: 0.00213 | E14: Eq
A15: Bioconcentration factor | B15: BCF
B16: Central | C16: ='B01'!$C$3 -> 30 | D16: L/kg | E16: Section 3.2.3.5.
B17: Lower | C17: ='B01'!$C$3 -> 30 | E17: Section 3.2.3.5.
B18: Upper | C18: ='B01'!$C$3 -> 30 | E18: Section 3.2.3.5.
A19: Concentration in fish | B19: ConcFish | C19: ConcWat × BCF
B20: Central | C20: =C12*C16 -> 0.0075 | D20: mg/kg | E20: Eq
B21: Lower | C21: =C13*C17 -> 0.0009 | E21: Eq
B22: Upper | C22: =C14*C18 -> 0.0639 | E22: Eq
A23: Amount of fish consumed | B23: Amnt
B24: Central | C24: ='A03'!$E$34 -> 0.77 | D24: kg/day | E24: Ruffle et al. 1994
B25: Lower | C25: ='A03'!$E$34 -> 0.77 | E25: Ruffle et al. 1994
B26: Upper | C26: ='A03'!$E$34 -> 0.77 | E26: Ruffle et al. 1994
A27: Toxic Equivalency Factor for formulation: (See risk assessment if this has a value other than 1.) | B27: TEF
B28: Central | C28: 1 | D28: Unitless | E28: Worksheet A01
B29: Lower | C29: 1 | E29: Worksheet A01
B30: Upper | C30: 1 | E30: Worksheet A01
A31: Body weight | B31: BW | C31: ='A02'!$C$7 -> 70 | D31: kg | E31: ICRP 1975
A32: Dose | B32: Dose | C32: ConcFish × Amnt × TEF ÷ BW
B33: Central | C33: =C20*C24*C28/C$31 -> 8.25e-05 | D33: mg/kg | E33: Eq
B34: Lower | C34: =C21*C25*C29/C$31 -> 9.9e-06 | D34: mg/kg | E34: Eq
B35: Upper | C35: =C22*C26*C30/C$31 -> 0.0007029 | D35: mg/kg | E35: Eq

Sheet D11
A1: Swimming Exposure Assessment Using Zero-Order Absorption, Adult Female, Surface Area, Whole body, for 60 minute(s) following an accidental spill
A2: Short Title | B2: Swimming | E2: DrmZrSwm
A3: Receptor | B3: Adult Female
A4: Duration | B4: Acute Accidental
A5: Surface Contaminated | B5: Surface Area, Whole body
A6: Parameter/Assumption | B6: Code / Range | C6: Equation/ Value | D6: Units | E6: Reference/Designation
A7: Surface Area | B7: SA | C7: ='A02'!$C$6 -> 16900 | D7: cm2 | E7: U.S. EPA/ORD 1997
A8: Duration of Exposure | B8: T_min | C8: 60 | D8: minutes | E8: Scenario
B9: T_hr | C9: =C8/60 -> 1 | D9: hours | E9: Eq
A10: Body weight | B10: BW | C10: =[1]A02!$C$3 -> 64 | D10: kg | E10: U.S. EPA/ORD 1985
A11: Pond Volume | B11: VPL | C11: ='A01'!C27 -> 20000000 | D11: liters | E11: Worksheet A01
A12: Mg of a.i. spilled into water | B12: MgA.I.
B13: Central | C13: ='A01'!C24 -> 5000 | D13: mg | E13: Section 3.2.3.4.6
B14: Lower | C14: ='A01'!C25 -> 600 | E14: Section 3.2.3.4.6
B15: Upper | C15: ='A01'!C26 -> 42600 | E15: Section 3.2.3.4.6
A16: Concentration in water in mg/mL | B16: ConcWat | C16: MgA.I. ÷ VPL
B17: Central | C17: =C13/C$11 -> 0.00025 | D17: mg/mL | E17: Eq
B18: Lower | C18: =C14/C$11 -> 3e-05 | E18: Eq
B19: Upper | C19: 0.00213 | E19: Eq
A20: Toxic Equivalency Factor for formulation: (See risk assessment if this has a value other than 1.) | B20: TEF
B21: Central | C21: =[1]A01!C$35 -> 1 | D21: Unitless | E21: Worksheet A01
B22: Lower | C22: =[1]A01!C$36 -> 1 | E22: Worksheet A01
B23: Upper | C23: =[1]A01!C$37 -> 1 | E23: Worksheet A01
A24: Dermal permeability | B24: Kp
B25: Central | C25: ='B03'!C4 -> 0.00032 | D25: cm/hour | E25: Section 3.2.2.2
B26: Lower | C26: ='B03'!C5 -> 9.2e-05 | E26: Section 3.2.2.2
B27: Upper | C27: ='B03'!C6 -> 0.001 | E27: Section 3.2.2.2
A28: Absorbed Dose | B28: Dose | C28: Kp × Conc × T_hr × SA × TEF ÷ BW
B29: Central | C29: =C25*C17*C$9*C$7*C21/C$10 -> 2.1125e-05 | D29: mg/kg
B30: Lower | C30: =C26*C18*C$9*C$7*C22/C$10 -> 7.288125e-07 | D30: mg/kg
B31: Upper | C31: =C27*C19*C$9*C$7*C23/C$10 -> 0.000562453125 | D31: mg/kg

Sheet E01
A1: Worksheet E01: Summary of Worker Exposure Assessments
F2: E01aV5-1Wrkr
A3: Scenario | B3: Subsistence Populations | C3: mg/kg/day or mg/kg/event | F3: Detail Worksheet
C4: Central | D4: Lower | E4: Upper
A5: Accidental/Incidental Exposures
A6: Contaminated Gloves, 1 min. | B6: Worker | C6: ='C02a'!$C$24 -> 0.0013824 | D6: ='C02a'!$C$25 -> 0.00019872 | E6: ='C02a'!$C$26 -> 0.00864 | F6: C02a
A7: Contaminated Gloves, 1 hour | B7: Worker | C7: ='C02b'!$C$24 -> 0.082944 | D7: ='C02b'!$C$25 -> 0.0119232 | E7: ='C02b'!$C$26 -> 0.5184 | F7: C02b
A8: Spill on Hands, 1 hour | B8: Worker | C8: ='C03a'!$C$33 -> 0.001554616946 | D8: ='C03a'!$C$34 -> 0.0007773084729 | E8: ='C03a'!$C$35 -> 0.003109233892 | F8: C03a
A9: Spill on lower legs, 1 hour | B9: Worker | C9: ='C03b'!$C$33 -> 0.003831020331 | D9: ='C03b'!$C$34 -> 0.001915510165 | E9: ='C03b'!$C$35 -> 0.007662040661 | F9: C03b
A10: General Exposures - Ineffective Use of PPE
A11: Absorbed dose rate method | B11: Worker | C11: ='C01a-Sup'!$C$19 -> 0.000816 | D11: ='C01a-Sup'!$C$20 -> 4.08e-05 | E11: ='C01a-Sup'!$C$21 -> 0.00544 | F11: C01a-Sup
A12: EPA/PHED method | B12: Worker | C12: ='C01b-Sup'!$C$45 -> 0.0002074971429 | D12: ='C01b-Sup'!$C$46 -> 0.0001037485714 | E12: ='C01b-Sup'!$C$47 -> 0.0004149942857 | F12: C01b-Sup
A13: General Exposures - Effective Use of PPE
A14: Absorbed dose rate method | B14: Worker | C14: ='C01a'!$C$19 -> 6.3648e-06 | D14: ='C01a'!$C$20 -> 3.1824e-07 | E14: ='C01a'!$C$21 -> 4.2432e-05 | F14: C01a
A15: EPA/PHED method | B15: Worker | C15: ='C01b'!$C$45 -> 6.244964571e-06 | D15: ='C01b'!$C$46 -> 3.122482286e-06 | E15: ='C01b'!$C$47 -> 1.248992914e-05 | F15: C01b

Sheet E02
A1: Worksheet E01: Summary of Worker Hazard Quotients (Toxicity)
F2: Custom E01aV5-1Wrkr
A3: Scenario | B3: Receptor | C3: Hazard Quotients | F3: Toxicity Value
C4: Central | D4: Lower | E4: Upper
A5: Accidental/Incidental Exposures
A6: Contaminated Gloves, 1 min. | B6: Worker | C6: ='E01'!C6/'E02'!$F6 -> 5.5296 | D6: ='E01'!D6/'E02'!$F6 -> 0.79488 | E6: ='E01'!E6/'E02'!$F6 -> 34.56 | F6: ='B02'!$E$3 -> 0.00025
A7: Contaminated Gloves, 1 hour | B7: Worker | C7: ='E01'!C7/'E02'!$F7 -> 331.776 | D7: ='E01'!D7/'E02'!$F7 -> 47.6928 | E7: ='E01'!E7/'E02'!$F7 -> 2073.6 | F7: ='B02'!$E$3 -> 0.00025
A8: Spill on Hands, 1 hour | B8: Worker | C8: ='E01'!C8/'E02'!$F8 -> 6.218467783 | D8: ='E01'!D8/'E02'!$F8 -> 3.109233892 | E8: ='E01'!E8/'E02'!$F8 -> 12.43693557 | F8: ='B02'!$E$3 -> 0.00025
A9: Spill on lower legs, 1 hour | B9: Worker | C9: ='E01'!C9/'E02'!$F9 -> 15.32408132 | D9: ='E01'!D9/'E02'!$F9 -> 7.662040661 | E9: ='E01'!E9/'E02'!$F9 -> 30.64816265 | F9: ='B02'!$E$3 -> 0.00025
A10: General Exposures - Ineffective Use of PPE
A11: Longer-term
A12: Absorbed dose rate | B12: Worker | C12: ='E01'!C11/$F12 -> 10.88 | D12: ='E01'!D11/$F12 -> 0.544 | E12: ='E01'!E11/$F12 -> 72.53333333 | F12: ='B02'!E4 -> 7.5e-05
A13: EPA/PHED Method | B13: Worker | C13: ='E01'!C12/'E02'!$F13 -> 2.766628571 | D13: ='E01'!D12/'E02'!$F13 -> 1.383314286 | E13: ='E01'!E12/'E02'!$F13 -> 5.533257143 | F13: ='B02'!E4 -> 7.5e-05
A14: Shorter-term
A15: Absorbed dose rate | B15: Worker | C15: ='E01'!C11/'E02'!$F15 -> 3.264 | D15: ='E01'!D11/'E02'!$F15 -> 0.1632 | E15: ='E01'!E11/'E02'!$F15 -> 21.76 | F15: ='B02'!E3 -> 0.00025
A16: EPA/PHED Method | B16: Worker | C16: ='E01'!C12/'E02'!$F16 -> 0.8299885714 | D16: ='E01'!D12/'E02'!$F16 -> 0.4149942857 | E16: ='E01'!E12/'E02'!$F16 -> 1.659977143 | F16: ='B02'!E3 -> 0.00025
A17: General Exposures - Effective Use of PPE
A18: Longer-term
A19: Absorbed dose rate | B19: Worker | C19: ='E01'!C14/'E02'!$F19 -> 0.084864 | D19: ='E01'!D14/'E02'!$F19 -> 0.0042432 | E19: ='E01'!E14/'E02'!$F19 -> 0.56576 | F19: ='B02'!E4 -> 7.5e-05
A20: EPA/PHED Method | B20: Worker | C20: ='E01'!C15/'E02'!$F20 -> 0.08326619429 | D20: ='E01'!D15/'E02'!$F20 -> 0.04163309714 | E20: ='E01'!E15/'E02'!$F20 -> 0.1665323886 | F20: ='B02'!E4 -> 7.5e-05
A21: Shorter-term
A22: Absorbed dose rate | B22: Worker | C22: ='E01'!C14/'E02'!$F22 -> 0.0254592 | D22: ='E01'!D14/'E02'!$F22 -> 0.00127296 | E22: ='E01'!E14/'E02'!$F22 -> 0.169728 | F22: ='B02'!E3 -> 0.00025
A23: EPA/PHED Method | B23: Worker | C23: ='E01'!C15/'E02'!$F23 -> 0.02497985829 | D23: ='E01'!D15/'E02'!$F23 -> 0.01248992914 | E23: ='E01'!E15/'E02'!$F23 -> 0.04995971657 | F23: ='B02'!E3 -> 0.00025

Sheet E03
A1: Worksheet E03: Summary of Exposure Assessments for the General Public
F2: E03aV5
A3: Scenario | B3: Receptor | C3: mg/kg/day or mg/kg/event | F3: Detail Worksheet
C4: Central | D4: Lower | E4: Upper
A5: Accidental Acute Exposures (dose in mg/kg/event)
A6: Direct Spray of Child, whole body | B6: Child | C6: No exposure assessment
A7: Direct Spray of Woman, feet and lower legs | B7: Adult Female | C7: No exposure assessment
A8: Water consumption (spill) | B8: Child | C8: ='D05'!$C$21 -> 1.879699248e-05 | D8: ='D05'!$C$22 -> 1.37593985e-06 | E8: ='D05'!$C$23 -> 0.0002402255639 | F8: D05
A9: Fish consumption (spill) | B9: Adult Male | C9: =D08a!$C$33 -> 1.692857143e-05 | D9: =D08a!$C$34 -> 2.031428571e-06 | E9: =D08a!$C$35 -> 0.0001442314286 | F9: D08a
A10: Fish consumption (spill) | B10: Subsistence Populations | C10: =D08b!$C$33 -> 8.25e-05 | D10: =D08b!$C$34 -> 9.9e-06 | E10: =D08b!$C$35 -> 0.0007029 | F10: D08b
A11: Swimming, one hour | B11: Adult Female | C11: ='D11'!$C$29 -> 2.1125e-05 | D11: ='D11'!$C$30 -> 7.288125e-07 | E11: ='D11'!$C$31 -> 0.000562453125 | F11: D11
A12: Non-Accidental Acute Exposures (dose in mg/kg/event)
A13: Vegetation Contact, shorts and T-shirt | B13: Adult Female | C13: No exposure assessment
A14: Contaminated Fruit | B14: Adult Female | C14: No exposure assessment
A15: Contaminated Vegetation | B15: Adult Female | C15: No exposure assessment
A16: Swimming, one hour | B16: Adult Female | C16: No exposure assessment
A17: Water consumption | B17: Child | C17: No exposure assessment
A18: Fish consumption | B18: Adult Male | C18: No exposure assessment
A19: Fish consumption | B19: Subsistence Populations | C19: No exposure assessment
A20: Chronic/Longer Term Exposures (dose in mg/kg/day)
A21: Contaminated Fruit | B21: Adult Female | C21: No exposure assessment
A22: Contaminated Vegetation | B22: Adult Female | C22: No exposure assessment
A23: Water consumption | B23: Adult Male | C23: No exposure assessment
A24: Fish consumption | B24: Adult Male | C24: No exposure assessment
A25: Fish consumption | B25: Subsistence Populations | C25: No exposure assessment

Sheet E04
A1: Worksheet E03: Summary of Hazard Quotients (Toxicity) for the General Public
F2: E03aV5
A3: Scenario | B3: Receptor | C3: Hazard Quotients | F3: Toxicity Value
C4: Central | D4: Lower | E4: Upper
A5: Accidental Acute Exposures (dose in mg/kg/event)
A6: Direct Spray of Child, whole body | B6: Child | C6: No exposure assessment
A7: Direct Spray of Woman, feet and lower legs | B7: Adult Female | C7: No exposure assessment
A8: Water consumption (spill) | B8: Child | C8: ='E03'!C8/$F8 -> 0.07518796992 | D8: ='E03'!D8/$F8 -> 0.005503759398 | E8: ='E03'!E8/$F8 -> 0.9609022556 | F8: ='B02'!$E$3 -> 0.00025
A9: Fish consumption (spill) | B9: Adult Male | C9: ='E03'!C9/$F9 -> 0.06771428571 | D9: ='E03'!D9/$F9 -> 0.008125714286 | E9: ='E03'!E9/$F9 -> 0.5769257143 | F9: ='B02'!$E$3 -> 0.00025
A10: Fish consumption (spill) | B10: Subsistence Populations | C10: ='E03'!C10/$F10 -> 0.33 | D10: ='E03'!D10/$F10 -> 0.0396 | E10: ='E03'!E10/$F10 -> 2.8116 | F10: ='B02'!$E$3 -> 0.00025
A11: Swimming, one hour | B11: Adult Female | C11: ='E03'!C11/$F11 -> 0.0845 | D11: ='E03'!D11/$F11 -> 0.00291525 | E11: ='E03'!E11/$F11 -> 2.2498125 | F11: ='B02'!$E$3 -> 0.00025
A12: Non-Accidental Acute Exposures (dose in mg/kg/event)
A13: Vegetation Contact, shorts and T-shirt | B13: Adult Female | C13: No exposure assessment
A14: Contaminated Fruit | B14: Adult Female | C14: No exposure assessment
A15: Contaminated Vegetation | B15: Adult Female | C15: No exposure assessment
A16: Swimming, one hour | B16: Adult Female | C16: No exposure assessment
A17: Water consumption | B17: Child | C17: No exposure assessment
A18: Fish consumption | B18: Adult Male | C18: No exposure assessment
A19: Fish consumption | B19: Subsistence Populations | C19: No exposure assessment
A20: Chronic/Longer Term Exposures (dose in mg/kg/day)
A21: Contaminated Fruit | B21: Adult Female | C21: No exposure assessment
A22: Contaminated Vegetation | B22: Adult Female | C22: No exposure assessment
A23: Water consumption | B23: Adult Male | C23: No exposure assessment
A24: Fish consumption | B24: Adult Male | C24: No exposure assessment
A25: Fish consumption | B25: Subsistence Populations | C25: No exposure assessment

Sheet F05a
A1: Acute exposure of Small Mammal after an accidental spill of the pesticide into a pond
A2: Short Title | B2: Water consumption, accidental spill | E2: WatSpillAllo Modified
A3: Receptor | B3: Small Mammal
A4: Duration | B4: Acute
A5: Parameter/Assumption | B5: Code / Range | C5: Equation/ Value | D5: Units | E5: Reference/Designation
A6: Body weight | B6: BW | C6: ='A02'!$C$99 -> 0.02 | D6: kg | E6: Default
A7: Allometric coefficients forwater consumption per day in liters and BW in kilograms
B8: alpha | C8: ='A02'!$C$107 -> 0.099 | E8: U.S. EPA/ORD 1993
B9: beta | C9: ='A02'!$C$108 -> 0.9 | E9: U.S. EPA/ORD 1993
A10: Amount of water consumed per day | C10: Amnt = alpha BW beta
B11: Amnt | C11: =C8*(C6^C9) -> 0.002927940121 | D11: liters | E11: Eq
A12: Pond Volume | B12: VPL | C12: ='A01'!C27 -> 20000000 | D12: liters | E12: Worksheet A01
A13: Mg of a.i. spilled into water | B13: MgA.I.
B14: Central | C14: ='A01'!C24 -> 5000 | D14: mg | E14: Worksheet A01
B15: Lower | C15: ='A01'!C25 -> 600 | E15: Worksheet A01
B16: Upper | C16: ='A01'!C26 -> 42600 | E16: Worksheet A01
A17: Concentration in pond water | B17: ConcWat | C17: MgA.I. ÷ VPL
B18: Central | C18: =C14/C$12 -> 0.00025 | D18: mg/L | E18: Eq
B19: Lower | C19: =C15/C$12 -> 3e-05 | E19: Eq
B20: Upper | C20: 0.00213 | E20: Eq
A21: Absorbed Dose | B21: Dose | C21: ConcWat × Amnt ÷ BW
B22: Central | C22: =C18*C$11/C$6 -> 3.659925151e-05 | D22: mg/kg | E22: Eq
B23: Lower | C23: =C19*C$11/C$6 -> 4.391910181e-06 | D23: mg/kg | E23: Eq
B24: Upper | C24: 0.0003118256228 | D24: mg/kg | E24: Eq

Sheet F05b
A1: Acute exposure of Small Bird after an accidental spill of the pesticide into a pond
A2: Short Title | B2: Water consumption, accidental spill | E2: WatSpillAllo Modified
A3: Receptor | B3: Small bird
A4: Duration | B4: Acute
A5: Parameter/Assumption | B5: Code / Range | C5: Equation/ Value | D5: Units | E5: Reference/Designation
A6: Body weight | B6: BW | C6: ='A02'!$C$51 -> 0.01 | D6: kg | E6: Default
A7: Allometric coefficients forwater consumption per day in liters and BW in kilograms
B8: alpha | C8: ='A02'!$C$54 -> 0.059 | E8: U.S. EPA/ORD 1993
B9: beta | C9: ='A02'!$C$55 -> 0.67 | E9: U.S. EPA/ORD 1993
A10: Amount of water consumed per day | C10: Amnt = alpha BW beta
B11: Amnt | C11: =C8*(C6^C9) -> 0.002696820319 | D11: liters | E11: Eq
A12: Pond Volume | B12: VPL | C12: ='A01'!C27 -> 20000000 | D12: liters | E12: Worksheet A01
A13: Mg of a.i. spilled into water | B13: MgA.I.
B14: Central | C14: ='A01'!C24 -> 5000 | D14: mg | E14: Worksheet A01
B15: Lower | C15: ='A01'!C25 -> 600 | E15: Worksheet A01
B16: Upper | C16: ='A01'!C26 -> 42600 | E16: Worksheet A01
A17: Concentration in pond water | B17: ConcWat | C17: MgA.I. ÷ VPL
B18: Central | C18: =C14/C$12 -> 0.00025 | D18: mg/L | E18: Eq
B19: Lower | C19: =C15/C$12 -> 3e-05 | E19: Eq
B20: Upper | C20: 0.00213 | E20: Eq
A21: Absorbed Dose | B21: Dose | C21: ConcWat × Amnt ÷ BW
B22: Central | C22: =C18*C$11/C$6 -> 6.742050797e-05 | D22: mg/kg | E22: Eq
B23: Lower | C23: =C19*C$11/C$6 -> 8.090460956e-06 | D23: mg/kg | E23: Eq
B24: Upper | C24: 0.0005744227279 | D24: mg/kg | E24: Eq

Sheet F05c
A1: Acute exposure of Carnivorous mammal after an accidental spill of the pesticide into a pond
A2: Short Title | B2: Water consumption, accidental spill | E2: WatSpillAllo Modified
A3: Receptor | B3: Carnivorous mammal
A4: Duration | B4: Acute
A5: Parameter/Assumption | B5: Code / Range | C5: Equation/ Value | D5: Units | E5: Reference/Designation
A6: Body weight | B6: BW | C6: ='A02'!$C$80 -> 5 | D6: kg | E6: Default
A7: Allometric coefficients forwater consumption per day in liters and BW in kilograms
B8: alpha | C8: ='A02'!$C$83 -> 0.099 | E8: U.S. EPA/ORD 1993
B9: beta | C9: ='A02'!$C$84 -> 0.9 | E9: U.S. EPA/ORD 1993
A10: Amount of water consumed per day | C10: Amnt = alpha BW beta
B11: Amnt | C11: =C8*(C6^C9) -> 0.4214132616 | D11: liters | E11: Eq
A12: Pond Volume | B12: VPL | C12: ='A01'!C27 -> 20000000 | D12: liters | E12: Worksheet A01
A13: Mg of a.i. spilled into water | B13: MgA.I.
B14: Central | C14: ='A01'!C24 -> 5000 | D14: mg | E14: Worksheet A01
B15: Lower | C15: ='A01'!C25 -> 600 | E15: Worksheet A01
B16: Upper | C16: ='A01'!C26 -> 42600 | E16: Worksheet A01
A17: Concentration in pond water | B17: ConcWat | C17: MgA.I. ÷ VPL
B18: Central | C18: =C14/C$12 -> 0.00025 | D18: mg/L | E18: Eq
B19: Lower | C19: =C15/C$12 -> 3e-05 | E19: Eq
B20: Upper | C20: 0.00213 | E20: Eq
A21: Absorbed Dose | B21: Dose | C21: ConcWat × Amnt ÷ BW
B22: Central | C22: =C18*C$11/C$6 -> 2.107066308e-05 | D22: mg/kg | E22: Eq
B23: Lower | C23: =C19*C$11/C$6 -> 2.52847957e-06 | D23: mg/kg | E23: Eq
B24: Upper | C24: 0.0001795220495 | D24: mg/kg | E24: Eq

Sheet F05d
A1: Acute exposure of Large Mammal after an accidental spill of the pesticide into a pond
A2: Short Title | B2: Water consumption, accidental spill | E2: WatSpillAllo Modified
A3: Receptor | B3: Carnivorous mammal
A4: Duration | B4: Acute
A5: Parameter/Assumption | B5: Code / Range | C5: Equation/ Value | D5: Units | E5: Reference/Designation
A6: Body weight | B6: BW | C6: ='A02'!$C$89 -> 70 | D6: kg | E6: Default
A7: Allometric coefficients forwater consumption per day in liters and BW in kilograms
B8: alpha | C8: ='A02'!$C$83 -> 0.099 | E8: U.S. EPA/ORD 1993
B9: beta | C9: ='A02'!$C$84 -> 0.9 | E9: U.S. EPA/ORD 1993
A10: Amount of water consumed per day | C10: Amnt = alpha BW beta
B11: Amnt | C11: =C8*(C6^C9) -> 4.531306412 | D11: liters | E11: Eq
A12: Pond Volume | B12: VPL | C12: ='A01'!C27 -> 20000000 | D12: liters | E12: Worksheet A01
A13: Mg of a.i. spilled into water | B13: MgA.I.
B14: Central | C14: ='A01'!C24 -> 5000 | D14: mg | E14: Worksheet A01
B15: Lower | C15: ='A01'!C25 -> 600 | E15: Worksheet A01
B16: Upper | C16: ='A01'!C26 -> 42600 | E16: Worksheet A01
A17: Concentration in pond water | B17: ConcWat | C17: MgA.I. ÷ VPL
B18: Central | C18: =C14/C$12 -> 0.00025 | D18: mg/L | E18: Eq
B19: Lower | C19: =C15/C$12 -> 3e-05 | E19: Eq
B20: Upper | C20: 0.00213 | E20: Eq
A21: Absorbed Dose | B21: Dose | C21: ConcWat × Amnt ÷ BW
B22: Central | C22: =C18*C$11/C$6 -> 1.618323718e-05 | D22: mg/kg | E22: Eq
B23: Lower | C23: =C19*C$11/C$6 -> 1.941988462e-06 | D23: mg/kg | E23: Eq
B24: Upper | C24: 0.0001378811808 | D24: mg/kg | E24: Eq

Sheet F05e
A1: Acute exposure of Small Bird after an accidental spill of the pesticide into a pond
A2: Short Title | B2: Water consumption, accidental spill | E2: WatSpillAllo Modified
A3: Receptor | B3: Small bird
A4: Duration | B4: Acute
A5: Parameter/Assumption | B5: Code / Range | C5: Equation/ Value | D5: Units | E5: Reference/Designation
A6: Body weight | B6: BW | C6: ='A02'!$C$40 -> 4 | D6: kg | E6: Default
A7: Allometric coefficients forwater consumption per day in liters and BW in kilograms
B8: alpha | C8: ='A02'!$C$54 -> 0.059 | E8: U.S. EPA/ORD 1993
B9: beta | C9: ='A02'!$C$55 -> 0.67 | E9: U.S. EPA/ORD 1993
A10: Amount of water consumed per day | C10: Amnt = alpha BW beta
B11: Amnt | C11: =C8*(C6^C9) -> 0.1493592781 | D11: liters | E11: Eq
A12: Pond Volume | B12: VPL | C12: ='A01'!C27 -> 20000000 | D12: liters | E12: Worksheet A01
A13: Mg of a.i. spilled into water | B13: MgA.I.
B14: Central | C14: ='A01'!C24 -> 5000 | D14: mg | E14: Worksheet A01
B15: Lower | C15: ='A01'!C25 -> 600 | E15: Worksheet A01
B16: Upper | C16: ='A01'!C26 -> 42600 | E16: Worksheet A01
A17: Concentration in pond water | B17: ConcWat | C17: MgA.I. ÷ VPL
B18: Central | C18: =C14/C$12 -> 0.00025 | D18: mg/L | E18: Eq
B19: Lower | C19: =C15/C$12 -> 3e-05 | E19: Eq
B20: Upper | C20: 0.00213 | E20: Eq
A21: Absorbed Dose | B21: Dose | C21: ConcWat × Amnt ÷ BW
B22: Central | C22: =C18*C$11/C$6 -> 9.334954881e-06 | D22: mg/kg | E22: Eq
B23: Lower | C23: =C19*C$11/C$6 -> 1.120194586e-06 | D23: mg/kg | E23: Eq
B24: Upper | C24: 7.953381558e-05 | D24: mg/kg | E24: Eq

Sheet F08
A1: Acute scenario for the consumption of contaminated fish by Fish-eating bird after an accidental spill of the pesticide into a pond
A2: Short Title | B2: Fish consumption, accidental spill | E2: FishPropSpill Modified
A3: Receptor | B3: Fish eating bird
A4: Duration | B4: Acute
A5: Parameter/Assumption | B5: Code / Range | C5: Equation/ Value | D5: Units | E5: Reference/Designation
A6: Pond Volume | B6: VPL | C6: ='A01'!C27 -> 20000000 | D6: liters | E6: Worksheet A01
A7: Mg of a.i. spilled into water | B7: MgA.I.
B8: Central | C8: ='A01'!C24 -> 5000 | D8: mg | E8: Worksheet A01
B9: Lower | C9: ='A01'!C25 -> 600 | E9: Worksheet A01
B10: Upper | C10: ='A01'!C26 -> 42600 | E10: Worksheet A01
A11: Concentration in pond water | B11: ConcWat | C11: MgA.I. ÷ VPL
B12: Central | C12: =C8/C$6 -> 0.00025 | D12: mg/L | E12: Eq
B13: Lower | C13: =C9/C$6 -> 3e-05 | E13: Eq
B14: Upper | C14: 0.00213 | E14: Eq
A15: Bioconcentration factor | B15: BCF
B16: Central | C16: ='B01'!$C$5 -> 80 | D16: L/kg | E16: Section 3.2.3.5.
B17: Lower | C17: ='B01'!$C$5 -> 80 | E17: Section 3.2.3.5.
B18: Upper | C18: ='B01'!$C$5 -> 80 | E18: Section 3.2.3.5.
A19: Concentration in fish | B19: ConcFish | C19: ConcWat × BCF
B20: Central | C20: =C12*C16 -> 0.02 | D20: mg/kg | E20: Eq
B21: Lower | C21: =C13*C17 -> 0.0024 | E21: Eq
B22: Upper | C22: 0.1704 | E22: Eq
A23: Amount of fish consumed as proportion of body weight | B23: Prop
B24: Central | C24: ='A03'!$E$35 -> 0.1 | D24: unitless | E24: U.S. EPA/ORD 1993
B25: Lower | C25: ='A03'!$E$36 -> 0.05 | E25: U.S. EPA/ORD 1993
B26: Upper | C26: ='A03'!$E$37 -> 0.15 | E26: U.S. EPA/ORD 1993
A27: Absorbed Dose | B27: Dose | C27: ConcWat × Amnt ÷ BW
B28: Central | C28: =C20*C24 -> 0.002 | D28: mg/kg | E28: Eq
B29: Lower | C29: =C21*C25 -> 0.00012 | D29: mg/kg | E29: Eq
B30: Upper | C30: 0.02556 | D30: mg/kg | E30: Eq

Sheet F14a
A1: Consumption of Contaminated Insects, Small Mammal, acute exposure scenario, assuming uniform distribution to leaves
A2: Short Title | B2: Small Insects | E2: InsCkcal_Ac, Modified
A3: Receptor | B3: Small Mammal
A4: Duration | B4: Acute
A5: Material consumed | B5: Small insects
A6: Parameter/Assumption | B6: Code / Range | C6: Equation/ Value | D6: Units | E6: Reference/Designation
A7: Concentration in insects | B7: rr
B8: Central | C8: ='A01'!C29 -> 0.004 | D8: mg/kg insect | E8: Worksheet A01
B9: Lower | C9: ='A01'!C30 -> 0.0001 | E9: Worksheet A01
B10: Upper | C10: ='A01'!C31 -> 0.16 | E10: Worksheet A01
A11: Proportion of diet contaminated | B11: PropC
B12: Central | C12: 0.1 | D12: unitless | E12: Section 4.2.2.3 of Risk Assessment
B13: Lower | C13: 0.01 | E13: Section 4.2.2.3 of Risk Assessment
B14: Upper | C14: =[1]A01!C$37 -> 1 | E14: Section 4.2.2.3 of Risk Assessment
A15: Average concentration in diet | B15: Conc | C15: rr × PropC × PropL
B16: Central | C16: =C8*C12 -> 0.0004 | D16: mg/kg diet | E16: Eq
B17: Lower | C17: =C9*C13 -> 1e-06 | E17: Eq
B18: Upper | C18: 0.16 | E18: Eq
A19: Body weight | B19: BW | C19: ='A02'!$C$99 -> 0.02 | D19: kg | E19: Default
A20: Allometric coefficients for caloric requirement per day in kilocalories and BW in grams
B21: alpha | C21: ='A02'!$C$103 -> 1.894 | E21: U.S. EPA/ORD 1993
B22: beta | C22: ='A02'!$C$104 -> 0.7 | E22: U.S. EPA/ORD 1993
A23: Caloric requirement per day (see Note 1) | B23: KR | C23: alpha x (BW x 1000)beta
C24: =C21*((C19*1000)^C22) -> 15.42058933 | D24: kcal/day | E24: Eq
A25: Caloric content of prey (wet weight) | B25: KCW | C25: ='A02'!$C$64 -> 1.5 | D25: kcal/g | E25: U.S. EPA/ORD 1993
A26: Amount of food consumed per day, wet weight | B26: Amnt | C26: (KR ÷ KCW)/1000 g/kg
C27: =(C24/C25)/1000 -> 0.01028039289 | D27: kg | E27: Eq
A28: Dose | B28: Dose | C28: Amnt × Conc / BW
B29: Central | C29: =C$27 * C16/C$19 -> 0.0002056078578 | D29: mg/kg bw | E29: Eq
B30: Lower | C30: =C$27 * C17/C$19 -> 5.140196445e-07 | E30: Eq
B31: Upper | C31: =C$27 * C18/C$19 -> 0.08224314312 | E31: Eq

Sheet F14b
A1: Consumption of Contaminated Insects, Small Bird, acute exposure scenario, assuming uniform distribution to leaves
A2: Short Title | B2: Small Insects | E2: InsCkcal_Ac, Modified
A3: Receptor | B3: Small Bird
A4: Duration | B4: Acute
A5: Material consumed | B5: Small insects
A6: Parameter/Assumption | B6: Code / Range | C6: Equation/ Value | D6: Units | E6: Reference/Designation
A7: Concentration in insects | B7: rr
B8: Central | C8: ='A01'!C29 -> 0.004 | D8: mg/kg insect | E8: Worksheet A01
B9: Lower | C9: ='A01'!C30 -> 0.0001 | E9: Worksheet A01
B10: Upper | C10: ='A01'!C31 -> 0.16 | E10: Worksheet A01
A11: Proportion of diet contaminated | B11: PropC
B12: Central | C12: 0.1 | D12: unitless | E12: Section 4.2.2.3 of Risk Assessment
B13: Lower | C13: 0.01 | E13: Section 4.2.2.3 of Risk Assessment
B14: Upper | C14: =[1]A01!C$37 -> 1 | E14: Section 4.2.2.3 of Risk Assessment
A15: Average concentration in diet | B15: Conc | C15: rr × PropC × PropL
B16: Central | C16: =C8*C12 -> 0.0004 | D16: mg/kg diet | E16: Eq
B17: Lower | C17: =C9*C13 -> 1e-06 | E17: Eq
B18: Upper | C18: 0.16 | E18: Eq
A19: Body weight | B19: BW | C19: ='A02'!$C$51 -> 0.01 | D19: kg | E19: Default
A20: Allometric coefficients for caloric requirement per day in kilocalories and BW in grams
B21: alpha | C21: ='A02'!$C$52 -> 3.12 | E21: U.S. EPA/ORD 1993
B22: beta | C22: ='A02'!$C$53 -> 0.604 | E22: U.S. EPA/ORD 1993
A23: Caloric requirement per day (see Note 1) | B23: KR | C23: alpha x (BW x 1000)beta
C24: =C21*((C19*1000)^C22) -> 12.5358733 | D24: kcal/day | E24: Eq
A25: Caloric content of prey (wet weight) | B25: KCW | C25: ='A02'!$C$64 -> 1.5 | D25: kcal/g | E25: U.S. EPA/ORD 1993
A26: Amount of food consumed per day, wet weight | B26: Amnt | C26: (KR ÷ KCW)/1000 g/kg
C27: =(C24/C25)/1000 -> 0.008357248866 | D27: kg | E27: Eq
A28: Dose | B28: Dose | C28: Amnt × Conc / BW
B29: Central | C29: =C$27 * C16/C$19 -> 0.0003342899546 | D29: mg/kg bw | E29: Eq
B30: Lower | C30: =C$27 * C17/C$19 -> 8.357248866e-07 | E30: Eq
B31: Upper | C31: =C$27 * C18/C$19 -> 0.1337159819 | E31: Eq

Sheet G01
A1: Summary of Exposure Assessments for the Terrestrial Animals
F2: G01V5 Modified
A3: Scenario | B3: Receptor | C3: mg/kg/day or mg/kg/event | F3: Detail Worksheet
C4: Central | D4: Lower | E4: Upper
A5: Accidental Acute Exposures
A6: Direct Spray
A7: first-order absorption | B7: Small mammal | C7: No exposure assessment
A8: 100% absorption | B8: Small mammal | C8: No exposure assessment
A9: Contaminated Water
A10: Spill | B10: Small Mammal | C10: =F05a!$C$22 -> 3.659925151e-05 | D10: =F05a!$C$23 -> 4.391910181e-06 | E10: =F05a!$C$24 -> 0.0003118256228 | F10: F05a
A11: Spill | B11: Canid | C11: =F05c!$C$22 -> 2.107066308e-05 | D11: =F05c!$C$23 -> 2.52847957e-06 | E11: =F05c!$C$24 -> 0.0001795220495 | F11: F05c
A12: Spill | B12: Large Mammal | C12: =F05d!$C$22 -> 1.618323718e-05 | D12: =F05d!$C$23 -> 1.941988462e-06 | E12: =F05d!$C$24 -> 0.0001378811808 | F12: F05d
A13: Spill | B13: Small Bird | C13: =F05b!$C$22 -> 6.742050797e-05 | D13: =F05b!$C$23 -> 8.090460956e-06 | E13: =F05b!$C$24 -> 0.0005744227279 | F13: F05b
A14: Spill | B14: Large Bird | C14: =F05e!$C$22 -> 9.334954881e-06 | D14: =F05e!$C$23 -> 1.120194586e-06 | E14: =F05e!$C$24 -> 7.953381558e-05 | F14: F05e
A15: Consumption of contaminated Fish
A16: Spill | B16: Fish-eating bird | C16: ='F08'!$C$28 -> 0.002 | D16: ='F08'!$C$29 -> 0.00012 | E16: ='F08'!$C$30 -> 0.02556 | F16: F08
A17: Non-Accidental Acute Exposures
A18: Contaminated Vegetation
A19: Fruit | B19: Small Mammal | C19: No exposure assessment
A20: Grass | B20: Small Mammal | C20: No exposure assessment
A21: Grass | B21: Large Mammal | C21: No exposure assessment
A22: Grass | B22: Large Bird | C22: No exposure assessment
A23: Contaminated Water
B24: Small Mammal | C24: No exposure assessment
B25: Canid | C25: No exposure assessment
B26: Large Mammal | C26: No exposure assessment
B27: Small Bird | C27: No exposure assessment
B28: Large Bird | C28: No exposure assessment
A29: Contaminated Insects
B30: Small Mammal | C30: =F14a!$C$29 -> 0.0002056078578 | D30: =F14a!$C$30 -> 5.140196445e-07 | E30: =F14a!$C$31 -> 0.08224314312 | F30: F14a1
B31: Small Bird | C31: =F14b!$C$29 -> 0.0003342899546 | D31: =F14b!$C$30 -> 8.357248866e-07 | E31: =F14b!$C$31 -> 0.1337159819 | F31: F14b1
A32: Consumption of small mammal (after direct spray) by predator
B33: Carnivorous mammal | C33: No exposure assessment
B34: Carnivorous bird | C34: No exposure assessment
A35: Consumption of contaminated Fish
B36: Fish-eating bird | C36: No exposure assessment
A37: Chronic/Longer Term Exposures
A38: Contaminated Vegetation
A39: On-site | B39: Small Mammal | C39: No exposure assessment
A40: Off-Site | C40: No exposure assessment
A41: On-Site | B41: Large Mammal | C41: No exposure assessment
A42: Off-Site | C42: No exposure assessment
A43: On-Site | B43: Large Bird | C43: No exposure assessment
A44: Off-Site | C44: No exposure assessment
A45: Contaminated Water
B46: Small Mammal | C46: No exposure assessment
B47: Canid | C47: No exposure assessment
B48: Large Mammal | C48: No exposure assessment
B49: Small Bird | C49: No exposure assessment
B50: Large Bird | C50: No exposure assessment
A51: Consumption of contaminated Fish
B52: Fish-eating bird | C52: No exposure assessment

Sheet G02
A1: Summary of Exposure Assessments for the Terrestrial Animals
F2: G01V5 Modified
A3: Scenario | B3: Receptor | C3: Hazard Quotient | F3: Toxicity Value
C4: Central | D4: Lower | E4: Upper
A5: Accidental Acute Exposures
A6: Direct Spray
A7: first-order absorption | B7: Small mammal
A8: 100% absorption | B8: Small mammal
A9: Contaminated Water
A10: Spill | B10: Small Mammal | C10: ='G01'!C10/'G02'!$F10 -> 0.0004879900201 | D10: ='G01'!D10/'G02'!$F10 -> 5.855880241e-05 | E10: ='G01'!E10/'G02'!$F10 -> 0.004157674971 | F10: ='B02'!$E$5 -> 0.075
A11: Spill | B11: Canid | C11: ='G01'!C11/'G02'!$F11 -> 0.0002809421744 | D11: ='G01'!D11/'G02'!$F11 -> 3.371306093e-05 | E11: ='G01'!E11/'G02'!$F11 -> 0.002393627326 | F11: ='B02'!$E$5 -> 0.075
A12: Spill | B12: Large Mammal | C12: ='G01'!C12/'G02'!$F12 -> 0.0002157764958 | D12: ='G01'!D12/'G02'!$F12 -> 2.589317949e-05 | E12: ='G01'!E12/'G02'!$F12 -> 0.001838415744 | F12: ='B02'!$E$5 -> 0.075
A13: Spill | B13: Small Bird | C13: ='G01'!C13/'G02'!$F13 -> 1.465663217e-05 | D13: ='G01'!D13/'G02'!$F13 -> 1.75879586e-06 | E13: ='G01'!E13/'G02'!$F13 -> 0.0001248745061 | F13: ='B02'!$E$7 -> 4.6
A14: Spill | B14: Large Bird | C14: ='G01'!C14/'G02'!$F14 -> 2.029338018e-06 | D14: ='G01'!D14/'G02'!$F14 -> 2.435205621e-07 | E14: ='G01'!E14/'G02'!$F14 -> 1.728995991e-05 | F14: ='B02'!$E$7 -> 4.6
A15: Consumption of contaminated Fish
A16: Spill | B16: Fish-eating bird | C16: ='G01'!C16/'G02'!$F16 -> 0.0004347826087 | D16: ='G01'!D16/'G02'!$F16 -> 2.608695652e-05 | E16: ='G01'!E16/'G02'!$F16 -> 0.005556521739 | F16: ='B02'!$E$7 -> 4.6
A17: Non-Accidental Acute Exposures
A18: Contaminated Vegetation
A19: Fruit | B19: Small Mammal | C19: No exposure assessment
A20: Grass | B20: Small Mammal | C20: No exposure assessment
A21: Grass | B21: Large Mammal | C21: No exposure assessment
A22: Grass | B22: Large Bird | C22: No exposure assessment
A23: Contaminated Water
B24: Small Mammal | C24: No exposure assessment
B25: Canid | C25: No exposure assessment
B26: Large Mammal | C26: No exposure assessment
B27: Small Bird | C27: No exposure assessment
B28: Large Bird | C28: No exposure assessment
A29: Contaminated Insects
B30: Small Mammal | C30: ='G01'!C30/'G02'!$F30 -> 0.002741438104 | D30: ='G01'!D30/'G02'!$F30 -> 6.85359526e-06 | E30: ='G01'!E30/'G02'!$F30 -> 1.096575242 | F30: ='B02'!$E$5 -> 0.075
B31: Small Bird | C31: ='G01'!C31/'G02'!$F31 -> 7.267172927e-05 | D31: ='G01'!D31/'G02'!$F31 -> 1.816793232e-07 | E31: ='G01'!E31/'G02'!$F31 -> 0.02906869171 | F31: ='B02'!$E$7 -> 4.6
A32: Consumption of small mammal (after direct spray) by predator
B33: Carnivorous mammal | C33: No exposure assessment
B34: Carnivorous bird | C34: No exposure assessment
A35: Consumption of contaminated Fish
B36: Fish-eating bird | C36: No exposure assessment
A37: Chronic/Longer Term Exposures
A38: Contaminated Vegetation
A39: On-site | B39: Small Mammal | C39: No exposure assessment
A40: Off-Site | C40: No exposure assessment
A41: On-Site | B41: Large Mammal | C41: No exposure assessment
A42: Off-Site | C42: No exposure assessment
A43: On-Site | B43: Large Bird | C43: No exposure assessment
A44: Off-Site | C44: No exposure assessment
A45: Contaminated Water
B46: Small Mammal | C46: No exposure assessment
B47: Canid | C47: No exposure assessment
B48: Large Mammal | C48: No exposure assessment
B49: Small Bird | C49: No exposure assessment
B50: Large Bird | C50: No exposure assessment
A51: Consumption of contaminated Fish
B52: Fish-eating bird | C52: No exposure assessment

Sheet G03
A1: Worksheet G03: Summary of Hazard Quotients for Aquatic Species
F2: AqToxSumV5 Modified
A3: Exposures | C3: Concentrations (mg/L)
B4: Scenario | C4: Central | D4: Lower | E4: Upper | F4: Worksheet
B5: Accidental Spill | C5: ='D05'!$C$21 -> 1.879699248e-05 | D5: ='D05'!$C$22 -> 1.37593985e-06 | E5: ='D05'!$C$23 -> 0.0002402255639 | F5: D05
B6: Peak EEC | C6: No exposure assessment.
B7: Chronic | C7: No exposure assessment.
A8: Receptor | B8: Type | C8: Hazard Quotients | F8: Toxicity Value | G8: Toxicity Endpoint
C9: Central | D9: Lower | E9: Upper
A10: Accidental Acute Exposures
A11: Fish | B11: Sensitive | C11: =C$5/$F11 -> 0.002160573848 | D11: =D$5/$F11 -> 0.0001581540057 | E11: 0.02761213378 | F11: ='B02'!E11 -> 0.0087 | G11: NOAEC*
B12: Tolerant | C12: 0.00026106934 | D12: 1.911027569e-05 | E12: 0.003336466165 | F12: ='B02'!E12 -> 0.072 | G12: NOAEC*
A13: Amphibian | B13: Sensitive | C13: No toxicity data | F13: N/A
B14: Tolerant | C14: No toxicity data | F14: N/A
A15: Invertebrate | B15: Sensitive | C15: 9.398496241 | D15: 0.6879699248 | E15: 120.112782 | F15: ='B02'!$E$15 -> 2e-06 | G15: NOAEC*
B16: Tolerant | C16: 0.0007518796992 | D16: 5.503759398e-05 | E16: 0.009609022556 | F16: ='B02'!$E$17 -> 0.025 | G16: NOAEC*
A17: Macrophyte | B17: General | C17: 0.0001999680051 | D17: 1.463765797e-05 | E17: 0.002555591105 | F17: ='B02'!$E$20 -> 0.094 | G17: NOAEC
A18: Algae | B18: General | C18: 0.004819741662 | D18: 0.0003528050896 | E18: 0.06159629844 | F18: ='B02'!$E$19 -> 0.0039 | G18: NOAEC
A19: Non-Accidental Acute Exposures
A20: Fish | B20: Sensitive
B21: Tolerant
A22: Amphibian | B22: Sensitive
B23: Tolerant
A24: Invertebrate | B24: Sensitive
B25: Tolerant
A26: Macrophyte | B26: Sensitive
B27: Tolerant
A28: Algae | B28: Sensitive
B29: Tolerant
A30: Chronic/Longer Term Exposures
A31: Fish | B31: Sensitive
B32: Tolerant
A33: Amphibian | B33: Sensitive
B34: Tolerant
A35: Invertebrate | B35: Sensitive
B36: Tolerant
A37: Macrophyte | B37: Sensitive
B38: Tolerant
A39: Algae | B39: Sensitive
B40: Tolerant

Sheet G07a
A1: Consumption of Leaves of Treated Ash Tree, Assuming Uniform Distribution to Leaves
A2: Short Title | B2: Ash tree, uniform | E2: FdPropBW_Ac Modified
A3: Receptor | B3: Herbivorous Insect
A4: Duration | B4: Acute
A5: Material consumed | B5: Leaves of Ash Tree
A6: Parameter/Assumption | B6: Code / Range | C6: Equation/ Value | D6: Units | E6: Reference/Designation
A7: Amount consumed per day per unit body weight | B7: Amnt
B8: Central | C8: 1.3 | D8: kg food/kg BW per day | E8: Waldbauer 1968
B9: Lower | C9: 0.6 | E9: Reichle et al. 1973
B10: Upper | C10: 2.2 | E10: Waldbauer 1968
A11: Concentrations in Trees Assuming Uniform Distribution | B11: rr
B12: Central | C12: 3 | D12: mg/kg leaf | E12: Section 4.2.3 of Risk Assessment
B13: Lower | C13: 0.4 | E13: Section 4.2.3 of Risk Assessment
B14: Upper | C14: 19 | E14: Section 4.2.3 of Risk Assessment
A15: Distribution factor to leaves | B15: PropL | C15: 1 | D15: proportion | E15: Section 4.2.3 of Risk Assessment
A16: Concentration in leaves | B16: Conc | C16: rr × PropL
B17: Central | C17: =C12*C$15 -> 3 | D17: mg/kg leaf | E17: Eq
B18: Lower | C18: =C13*C$15 -> 0.4 | E18: Eq
B19: Upper | C19: 19 | E19: Eq
A20: Dose | B20: Dose | C20: Conc × Amnt
B21: Central | C21: =C8*C17 -> 3.9 | D21: mg/kg bw | E21: Eq
B22: Lower | C22: =C9*C18 -> 0.24 | E22: Eq
B23: Upper | C23: 41.8 | E23: Eq
B24: Toxicity Values (mg/kg bw)
B25: Sensitive Populations | C25: Tolerant Populations
A26: Toxicity Values | B26: ='B02'!$E$9 -> 1e-05 | C26: ='B02'!$E$10 -> 0.008 | E26: Section 4.3.2.4. of Risk Assessment
B27: HQs
A28: Central | B28: =$C21/B$26 -> 390000 | C28: =$C21/C$26 -> 487.5
A29: Lower | B29: =$C22/B$26 -> 24000 | C29: 30
A30: Upper | B30: =$C23/B$26 -> 4180000 | C30: 5225

Sheet G07b
A1: Consumption of Leaves of Treated Ash Tree, Assuming Limited Distribution to Leaves
A2: Short Title | B2: Ash tree, uniform | E2: FdPropBW_Ac Modified
A3: Receptor | B3: Herbivorous Insect
A4: Duration | B4: Acute
A5: Material consumed | B5: Leaves of Ash Tree
A6: Parameter/Assumption | B6: Code / Range | C6: Equation/ Value | D6: Units | E6: Reference/Designation
A7: Amount consumed per day per unit body weight | B7: Amnt
B8: Central | C8: =G07a!C8 -> 1.3 | D8: kg food/kg BW per day | E8: Waldbauer 1968
B9: Lower | C9: =G07a!C9 -> 0.6 | E9: Reichle et al. 1973
B10: Upper | C10: =G07a!C10 -> 2.2 | E10: Waldbauer 1968
A11: Concentrations in Trees Assuming Uniform Distribution | B11: rr
B12: Central | C12: =G07a!C12 -> 3 | D12: mg/kg leaf | E12: Section 4.2.3 of Risk Assessment
B13: Lower | C13: =G07a!C13 -> 0.4 | E13: Section 4.2.3 of Risk Assessment
B14: Upper | C14: =G07a!C14 -> 19 | E14: Section 4.2.3 of Risk Assessment
A15: Distribution factor to leaves | B15: PropR | C15: 0.1 | D15: proportion | E15: Section 4.2.3 of Risk Assessment
A16: Concentration in leaves | B16: Conc | C16: rr × PropR
B17: Central | C17: =C12*C$15 -> 0.3 | D17: mg/kg leaf | E17: Eq
B18: Lower | C18: =C13*C$15 -> 0.04 | E18: Eq
B19: Upper | C19: 1.9 | E19: Eq
A20: Dose | B20: Dose | C20: Conc × Amnt
B21: Central | C21: =C8*C17 -> 0.39 | D21: mg/kg bw | E21: Eq
B22: Lower | C22: =C9*C18 -> 0.024 | E22: Eq
B23: Upper | C23: 4.18 | E23: Eq
B24: Toxicity Values (mg/kg bw)
B25: Sensitive Populations | C25: Tolerant Populations
A26: Toxicity Values | B26: ='B02'!$E$9 -> 1e-05 | C26: ='B02'!$E$10 -> 0.008 | E26: Section 4.3.2.4. of Risk Assessment
B27: HQs
A28: Central | B28: =$C21/B$26 -> 39000 | C28: =$C21/C$26 -> 48.75
A29: Lower | B29: =$C22/B$26 -> 2400 | C29: 3
A30: Upper | B30: 418000 | C30: 522.5
